Workbook

Sheet Alpha
B2: Height | C2: Average Wind Speed | D2: A-Parameter | E2: k-Parameter | F2: Brutto-wind-energie [kWh/m²] | G2: Yield | H2: Height Ratio | I2: Wind Speed Ratio | J2: Log of Height Ratio | K2: Log of Height Ratio | L2: Implied Alpha | M2: 10 Meter Speed | N2: Check of Wind Speed
B3: 5 | C3: 3.35 | D3: 3.7 | E3: 1.65 | F3: 484 | G3: 4254
B4: 10 | C4: 3.92 | D4: 4.4 | E4: 1.74 | F4: 724 | G4: 6497 | H4: =B4/$B$4 -> 1 | I4: =C4/$C$4 -> 1 | J4: =LN(H4) -> 0 | K4: =LN(I4) -> 0 | L4: =IF(J4,K4/J4) -> FALSE | R4: v2/v1 = [z2/z1]^ a
B5: 15 | C5: 4.26 | D5: 4.8 | E5: 1.79 | F5: 896 | G5: 8026 | H5: =B5/$B$4 -> 1.5 | I5: =C5/$C$4 -> 1.086734694 | J5: =LOG10(H5) -> 0.1760912591 | K5: =LOG(I5) -> 0.03612353208 | L5: =IF(J5,K5/J5) -> 0.2051409722 | M5: =$C$4 -> 3.92 | N5: =(H5^L5)*M5 -> 4.26
B6: 20 | C6: 4.49 | D6: 5.1 | E6: 1.82 | F6: 1032 | G6: 9182 | H6: 2 | I6: 1.145408163 | J6: =LOG10(H6) -> 0.3010299957 | K6: =LOG(I6) -> 0.05896027398 | L6: 0.1958617906 | M6: =$C$4 -> 3.92 | N6: =(H6^L6)*M6 -> 4.49 | R6: log (v2/v1]= a * log(z2/z1)
B7: 25 | C7: 4.67 | D7: 5.3 | E7: 1.85 | F7: 1144 | G7: 10113 | H7: 2.5 | I7: 1.191326531 | J7: 0.3979400087 | K7: 0.07603081355 | L7: 0.1910609938 | M7: 3.92 | N7: 4.67 | R7: a = log(v2/v1)/log(z2/z1)
B8: 30 | C8: 4.85 | D8: 5.5 | E8: 1.89 | F8: 1248 | G8: 10994 | H8: 3 | I8: 1.237244898 | J8: 0.4771212547 | K8: 0.09245567158 | L8: 0.1937781448 | M8: 3.92 | N8: 4.85
B9: 35 | C9: 5 | D9: 5.6 | E9: 1.92 | F9: 1340 | G9: 11758 | H9: 3.5 | I9: 1.275510204 | J9: 0.5440680444 | K9: 0.1056839373 | L9: 0.1942476468 | M9: 3.92 | N9: 5 | R9: v2 | S9: 6.23
B10: 40 | C10: 5.13 | D10: 5.8 | E10: 1.96 | F10: 1423 | G10: 12437 | H10: 4 | I10: 1.308673469 | J10: 0.6020599913 | K10: 0.1168312981 | L10: 0.1940525857 | M10: 3.92 | N10: 5.13 | R10: v1 | S10: 3.92
B11: 45 | C11: 5.25 | D11: 5.9 | E11: 1.98 | F11: 1498 | G11: 13050 | H11: 4.5 | I11: 1.339285714 | J11: 0.6532125138 | K11: 0.1268732364 | L11: 0.1942296476 | M11: 3.92 | N11: 5.25
B12: 50 | C12: 5.35 | D12: 6 | E12: 2.01 | F12: 1568 | G12: 13606 | H12: 5 | I12: 1.364795918 | J12: 0.6989700043 | K12: 0.135067715 | L12: 0.1932382136 | M12: 3.92 | N12: 5.35 | R12: z2 | S12: 100
B13: 55 | C13: 5.47 | D13: 6.2 | E13: 2.03 | F13: 1658 | G13: 14302 | H13: 5.5 | I13: 1.395408163 | J13: 0.7403626895 | K13: 0.1447012593 | L13: 0.1954464499 | M13: 3.92 | N13: 5.47 | R13: z1 | S13: 10
B14: 60 | C14: 5.58 | D14: 6.3 | E14: 2.05 | F14: 1740 | G14: 14948 | H14: 6 | I14: 1.423469388 | J14: 0.7781512504 | K14: 0.1533481319 | L14: 0.1970672563 | M14: 3.92 | N14: 5.58
B15: 65 | C15: 5.68 | D15: 6.4 | E15: 2.07 | F15: 1820 | G15: 15550 | H15: 6.5 | I15: 1.448979592 | J15: 0.8129133566 | K15: 0.1610622687 | L15: 0.1981296867 | M15: 3.92 | N15: 5.68 | R15: z2/z1 | S15: =S12/S13 -> 10
B16: 70 | C16: 5.78 | D16: 6.5 | E16: 2.09 | F16: 1897 | G16: 16112 | H16: 7 | I16: 1.474489796 | J16: 0.84509804 | K16: 0.1686417714 | L16: 0.199552908 | M16: 3.92 | N16: 5.78 | R16: LN | S16: =LN(S15) -> 2.302585093 | V16: z2 | W16: 300
B17: 75 | C17: 5.86 | D17: 6.6 | E17: 2.1 | F17: 1970 | G17: 16640 | H17: 7.5 | I17: 1.494897959 | J17: 0.8750612634 | K17: 0.174611549 | L17: 0.199542085 | M17: 3.92 | N17: 5.86 | R17: Log 10 | S17: =LOG10(S15) -> 1 | V17: z1 | W17: 150
B18: 80 | C18: 5.95 | D18: 6.7 | E18: 2.12 | F18: 2039 | G18: 17138 | H18: 8 | I18: 1.517857143 | J18: 0.903089987 | K18: 0.1812308987 | L18: 0.2006786714 | M18: 3.92 | N18: 5.95 | R18: Log | S18: =LOG(S15) -> 1 | V18: z2/z1 | W18: =W16/W17 -> 2
B19: 85 | C19: 6.02 | D19: 6.8 | E19: 2.13 | F19: 2103 | G19: 17607 | H19: 8.5 | I19: 1.535714286 | J19: 0.9294189257 | K19: 0.1863104242 | L19: 0.2004590385 | M19: 3.92 | N19: 6.02
B20: 90 | C20: 6.09 | D20: 6.9 | E20: 2.15 | F20: 2168 | G20: 18054 | H20: 9 | I20: 1.553571429 | J20: 0.9542425094 | K20: 0.1913312256 | L20: 0.2005058711 | M20: 3.92 | N20: 6.09 | R20: v2/v1 | S20: =S9/S10 -> 1.589285714
B21: 95 | C21: 6.16 | D21: 7 | E21: 2.16 | F21: 2230 | G21: 18476 | H21: 9.5 | I21: 1.571428571 | J21: 0.9777236053 | K21: 0.1962946451 | L21: 0.2007670103 | M21: 3.92 | N21: 6.16 | R21: LN | S21: =LN(S20) -> 0.463284679 | V21: v2 | W21: 8.6
B22: 100 | C22: 6.23 | D22: 7 | E22: 2.17 | F22: 2289 | G22: 18881 | H22: 10 | I22: 1.589285714 | J22: 1 | K22: 0.2012019796 | L22: 0.2012019796 | M22: 3.92 | N22: 6.23 | R22: Log 10 | S22: =LOG10(S20) -> 0.2012019796 | V22: v1 | W22: 6.83
B23: 105 | C23: 6.32 | D23: 7.1 | E23: 2.17 | F23: 2390 | G23: 19465 | H23: 10.5 | I23: 1.612244898 | J23: 1.021189299 | K23: 0.2074310113 | L23: 0.2031268947 | M23: 3.92 | N23: 6.32 | R23: Log | S23: =LOG(S20) -> 0.2012019796 | V23: v2/v1 | W23: =W21/W22 -> 1.259150805
B24: 110 | C24: 6.4 | D24: 7.2 | E24: 2.16 | F24: 2489 | G24: 20016 | H24: 11 | I24: 1.632653061 | J24: 1.041392685 | K24: 0.212893907 | L24: 0.2044319208 | M24: 3.92 | N24: 6.4
B25: 115 | C25: 6.48 | D25: 7.3 | E25: 2.16 | F25: 2587 | G25: 20541 | H25: 11.5 | I25: 1.653061224 | J25: 1.06069784 | K25: 0.2182889389 | L25: 0.2057974765 | M25: 3.92 | N25: 6.48 | R25: alpha ln | S25: =S21/S16 -> 0.2012019796 | V25: ln(z2/z1) | W25: =LN(W18) -> 0.6931471806
B26: 120 | C26: 6.56 | D26: 7.4 | E26: 2.15 | F26: 2683 | G26: 21040 | H26: 12 | I26: 1.673469388 | J26: 1.079181246 | K26: 0.2236177724 | L26: 0.2072105804 | M26: 3.92 | N26: 6.56 | R26: alpha log | S26: =S22/S17 -> 0.2012019796 | V26: ln(v2/v1) | W26: =LN(W23) -> 0.2304375297
B27: 125 | C27: 6.63 | D27: 7.5 | E27: 2.15 | F27: 2773 | G27: 21513 | H27: 12.5 | I27: 1.691326531 | J27: 1.096910013 | K27: 0.2282274614 | L27: 0.2080639785 | M27: 3.92 | N27: 6.63
B28: 130 | C28: 6.7 | D28: 7.6 | E28: 2.15 | F28: 2871 | G28: 21964 | H28: 13 | I28: 1.709183673 | J28: 1.113943352 | K28: 0.2327887357 | L28: 0.2089771757 | M28: 3.92 | N28: 6.7 | R28: z2/z1 ^ a | S28: =S15^S25 -> 1.589285714 | V28: alpha | W28: =W26/W25 -> 0.3324510813
B29: 135 | C29: 6.77 | D29: 7.6 | E29: 2.15 | F29: 2956 | G29: 22388 | H29: 13.5 | I29: 1.727040816 | J29: 1.130333768 | K29: 0.2373026017 | L29: 0.2099402922 | M29: 3.92 | N29: 6.77 | R29: z2/z1 ^ a | S29: =S15^S26 -> 1.589285714
B30: 140 | C30: 6.83 | D30: 7.7 | E30: 2.14 | F30: 3045 | G30: 22790 | H30: 14 | I30: 1.742346939 | J30: 1.146128036 | K30: 0.2411346367 | L30: 0.2103906624 | M30: 3.92 | N30: 6.83
B31: 145 | C31: 6.89 | D31: 7.8 | E31: 2.14 | F31: 3131 | G31: 23174 | H31: 14.5 | I31: 1.757653061 | J31: 1.161368002 | K31: 0.2449331549 | L31: 0.2109005538 | M31: 3.92 | N31: 6.89 | R31: Result | S31: =S29*S10 -> 6.23
B32: 150 | C32: 6.95 | D32: 7.9 | E32: 2.14 | F32: 3212 | G32: 23543 | H32: 15 | I32: 1.772959184 | J32: 1.176091259 | K32: 0.2486987376 | L32: 0.2114621086 | M32: 3.92 | N32: 6.95
B33: 155 | C33: 7.01 | D33: 7.9 | E33: 2.13 | F33: 3297 | G33: 23898 | H33: 15.5 | I33: 1.788265306 | J33: 1.190331698 | K33: 0.2524319509 | L33: 0.2120685783 | M33: 3.92 | N33: 7.01
B34: 160 | C34: 7.07 | D34: 8 | E34: 2.13 | F34: 3375 | G34: 24238 | H34: 16 | I34: 1.803571429 | J34: 1.204119983 | K34: 0.2561333468 | L34: 0.2127141402 | M34: 3.92 | N34: 7.07
B35: 165 | C35: 7.12 | D35: 8 | E35: 2.13 | F35: 3457 | G35: 24565 | H35: 16.5 | I35: 1.816326531 | J35: 1.217483944 | K35: 0.2591939266 | L35: 0.2128930963 | M35: 3.92 | N35: 7.12
B36: 170 | C36: 7.18 | D36: 8.1 | E36: 2.13 | F36: 3533 | G36: 24881 | H36: 17 | I36: 1.831632653 | J36: 1.230448921 | K36: 0.2628383772 | L36: 0.2136117743 | M36: 3.92 | N36: 7.18
B37: 175 | C37: 7.23 | D37: 8.2 | E37: 2.13 | F37: 3613 | G37: 25182 | H37: 17.5 | I37: 1.844387755 | J37: 1.243038049 | K37: 0.2658522303 | L37: 0.2138729627 | M37: 3.92 | N37: 7.23
B38: 180 | C38: 7.28 | D38: 8.2 | E38: 2.13 | F38: 3686 | G38: 25475 | H38: 18 | I38: 1.857142857 | J38: 1.255272505 | K38: 0.2688453123 | L38: 0.2141728678 | M38: 3.92 | N38: 7.28
B39: 185 | C39: 7.32 | D39: 8.3 | E39: 2.12 | F39: 3763 | G39: 25754 | H39: 18.5 | I39: 1.867346939 | J39: 1.267171728 | K39: 0.271225014 | L39: 0.2140396664 | M39: 3.92 | N39: 7.32
B40: 190 | C40: 7.37 | D40: 8.3 | E40: 2.12 | F40: 3834 | G40: 26026 | H40: 19 | I40: 1.880102041 | J40: 1.278753601 | K40: 0.2741814208 | L40: 0.2144130195 | M40: 3.92 | N40: 7.37
B41: 195 | C41: 7.42 | D41: 8.4 | E41: 2.12 | F41: 3903 | G41: 26286 | H41: 19.5 | I41: 1.892857143 | J41: 1.290034611 | K41: 0.2771178383 | L41: 0.2148142661 | M41: 3.92 | N41: 7.42
B42: 200 | C42: 7.46 | D42: 8.4 | E42: 2.12 | F42: 3978 | G42: 26538 | H42: 20 | I42: 1.903061224 | J42: 1.301029996 | K42: 0.2794527605 | L42: 0.2147934801 | M42: 3.92 | N42: 7.46

Sheet Summary
E2: 10 | F2: 7
H3: Nordex Mode1 | I3: Nordex Mode7 | J3: Nordex Mode8 | K3: Nordex Mode9 | L3: Nordex Mode0 | M3: Nordex Mode3 | N3: Nordex Mode6 | O3: Vestas PO7 | P3: Vestas 6.1 | Q3: Vestas SO4 | R3: Enercon Mode 0 | S3: Enercon 2 | T3: Nordex Mode1 | U3: Nordex Mode7 | V3: Nordex Mode8 | W3: Nordex Mode9 | X3: Nordex Mode0 | Y3: Nordex Mode3 | Z3: Nordex Mode6 | AA3: Vestas PO7 | AB3: Vestas 6.1 | AC3: Vestas SO4 | AD3: Enercon Mode 0 | AE3: Enercon 2
E5: =INDEX(T5:AE5,$E$2) -> Vestas SO4 | F5: =INDEX(T5:AF5,$F$2) -> Nordex Mode6 | G5: Wind Speed | H5: Power P (kW) | I5: Power P (kW) | J5: Power P (kW) | K5: Power P (kW) | L5: Power P (kW) | M5: Power P (kW) | N5: Power P (kW) | O5: Power P (kW) | P5: Power (kW) | Q5: Power P (kW) | R5: Power P (kW) | S5: P_v (kW) | T5: Nordex Mode1 | U5: Nordex Mode7 | V5: Nordex Mode8 | W5: Nordex Mode9 | X5: Nordex Mode0 | Y5: Nordex Mode3 | Z5: Nordex Mode6 | AA5: Vestas PO7 | AB5: Vestas 6.1 | AC5: Vestas SO4 | AD5: Enercon Mode 0 | AE5: Enercon 2
D6: 0 | E6: =INDEX(T6:AE6,$E$2) -> 0 | F6: =INDEX(T6:AF6,$F$2) -> 0 | G6: 0 | H6: 0 | I6: 0 | J6: 0 | K6: 0 | L6: 0 | M6: 0 | N6: 0 | O6: 0 | P6: 0 | Q6: 0 | R6: 0 | S6: 0 | T6: =H6/MAX(H$6:H$56) -> 0 | U6: =I6/MAX(I$6:I$56) -> 0 | V6: =J6/MAX(J$6:J$56) -> 0 | W6: 0 | X6: 0 | Y6: 0 | Z6: 0 | AA6: 0 | AB6: 0 | AC6: 0 | AD6: 0 | AE6: 0
D7: 0.5 | E7: =INDEX(T7:AE7,$E$2) -> 0 | F7: =INDEX(T7:AF7,$F$2) -> 0 | G7: 0.5 | H7: 0 | I7: 0 | J7: 0 | K7: 0 | L7: 0 | M7: 0 | N7: 0 | O7: 0 | P7: 0 | Q7: 0 | R7: 0 | S7: 0 | T7: =H7/MAX(H$6:H$56) -> 0 | U7: 0 | V7: 0 | W7: 0 | X7: 0 | Y7: 0 | Z7: 0 | AA7: 0 | AB7: 0 | AC7: 0 | AD7: 0 | AE7: 0
D8: 1 | E8: =INDEX(T8:AE8,$E$2) -> 0 | F8: =INDEX(T8:AF8,$F$2) -> 0 | G8: 1 | H8: 0 | I8: 0 | J8: 0 | K8: 0 | L8: 0 | M8: 0 | N8: 0 | O8: 0 | P8: 0 | Q8: 0 | R8: 1 | S8: 0 | T8: 0 | U8: 0 | V8: 0 | W8: 0 | X8: 0 | Y8: 0 | Z8: 0 | AA8: 0 | AB8: 0 | AC8: 0 | AD8: 0.000487804878 | AE8: 0
D9: 1.5 | E9: =INDEX(T9:AE9,$E$2) -> 0 | F9: =INDEX(T9:AF9,$F$2) -> 0 | G9: 1.5 | H9: 0 | I9: 0 | J9: 0 | K9: 0 | L9: 0 | M9: 0 | N9: 0 | O9: 0 | P9: 0 | Q9: 0 | R9: 1.732050808 | S9: 0 | T9: 0 | U9: 0 | V9: 0 | W9: 0 | X9: 0 | Y9: 0 | Z9: 0 | AA9: 0 | AB9: 0 | AC9: 0 | AD9: 0.000844902833 | AE9: 0
D10: 2 | E10: =INDEX(T10:AE10,$E$2) -> 0 | F10: =INDEX(T10:AF10,$F$2) -> 0 | G10: 2 | H10: 0 | I10: 0 | J10: 0 | K10: 0 | L10: 0 | M10: 0 | N10: 0 | O10: 0 | P10: 0 | Q10: 0 | R10: 3 | S10: 0 | T10: 0 | U10: 0 | V10: 0 | W10: 0 | X10: 0 | Y10: 0 | Z10: 0 | AA10: 0 | AB10: 0 | AC10: 0 | AD10: 0.001463414634 | AE10: 0
D11: 2.5 | E11: =INDEX(T11:AE11,$E$2) -> 0 | F11: =INDEX(T11:AF11,$F$2) -> 0 | G11: 2.5 | H11: 0 | I11: 0 | J11: 0 | K11: 0 | L11: 0 | M11: 0 | N11: 0 | O11: 0 | P11: 0 | Q11: 0 | R11: 8.660254038 | S11: 10 | T11: 0 | U11: 0 | V11: 0 | W11: 0 | X11: 0 | Y11: 0 | Z11: 0 | AA11: 0 | AB11: 0 | AC11: 0 | AD11: 0.004224514165 | AE11: 0.004255319149
D12: 3 | E12: =INDEX(T12:AE12,$E$2) -> 0.006153846154 | F12: =INDEX(T12:AF12,$F$2) -> 0.01305114638 | G12: 3 | H12: 45 | I12: 45 | J12: 45 | K12: 45 | L12: 74 | M12: 74 | N12: 74 | O12: 32 | P12: 32 | Q12: 32 | R12: 25 | S12: 25 | T12: 0.006617647059 | U12: 0.007575757576 | V12: 0.007731958763 | W12: 0.008538899431 | X12: 0.01088235294 | Y12: 0.01219110379 | Z12: 0.01305114638 | AA12: 0.004444444444 | AB12: 0.005245901639 | AC12: 0.006153846154 | AD12: 0.01219512195 | AE12: 0.01063829787
D13: 3.5 | E13: =INDEX(T13:AE13,$E$2) -> 0.02480769231 | F13: =INDEX(T13:AF13,$F$2) -> 0.03439153439 | G13: 3.5 | H13: 150 | I13: 150 | J13: 150 | K13: 150 | L13: 195 | M13: 195 | N13: 195 | O13: 129 | P13: 129 | Q13: 129 | R13: 45.27692569 | S13: 49 | T13: 0.02205882353 | U13: 0.02525252525 | V13: 0.02577319588 | W13: 0.0284629981 | X13: 0.02867647059 | Y13: 0.03212520593 | Z13: 0.03439153439 | AA13: 0.01791666667 | AB13: 0.02114754098 | AC13: 0.02480769231 | AD13: 0.02208630521 | AE13: 0.02085106383
D14: 4 | E14: =INDEX(T14:AE14,$E$2) -> 0.05538461538 | F14: =INDEX(T14:AF14,$F$2) -> 0.06349206349 | G14: 4 | H14: 291 | I14: 291 | J14: 291 | K14: 291 | L14: 360 | M14: 360 | N14: 360 | O14: 288 | P14: 288 | Q14: 288 | R14: 82 | S14: 82 | T14: 0.04279411765 | U14: 0.04898989899 | V14: 0.05 | W14: 0.05521821632 | X14: 0.05294117647 | Y14: 0.05930807249 | Z14: 0.06349206349 | AA14: 0.04 | AB14: 0.04721311475 | AC14: 0.05538461538 | AD14: 0.04 | AE14: 0.03489361702
D15: 4.5 | E15: =INDEX(T15:AE15,$E$2) -> 0.09057692308 | F15: =INDEX(T15:AF15,$F$2) -> 0.1 | G15: 4.5 | H15: 465 | I15: 465 | J15: 465 | K15: 465 | L15: 567 | M15: 567 | N15: 567 | O15: 481 | P15: 471 | Q15: 471 | R15: 119.4487338 | S15: 123 | T15: 0.06838235294 | U15: 0.07828282828 | V15: 0.07989690722 | W15: 0.08823529412 | X15: 0.08338235294 | Y15: 0.09341021417 | Z15: 0.1 | AA15: 0.06680555556 | AB15: 0.07721311475 | AC15: 0.09057692308 | AD15: 0.05826767501 | AE15: 0.05234042553
D16: 5 | E16: =INDEX(T16:AE16,$E$2) -> 0.1340384615 | F16: =INDEX(T16:AF16,$F$2) -> 0.1437389771 | G16: 5 | H16: 674 | I16: 674 | J16: 674 | K16: 674 | L16: 815 | M16: 815 | N16: 815 | O16: 715 | P16: 698 | Q16: 697 | R16: 174 | S16: 174 | T16: 0.09911764706 | U16: 0.1134680135 | V16: 0.1158075601 | W16: 0.1278937381 | X16: 0.1198529412 | Y16: 0.1342668863 | Z16: 0.1437389771 | AA16: 0.09930555556 | AB16: 0.1144262295 | AC16: 0.1340384615 | AD16: 0.08487804878 | AE16: 0.07404255319
D17: 5.5 | E17: =INDEX(T17:AE17,$E$2) -> 0.1873076923 | F17: =INDEX(T17:AF17,$F$2) -> 0.1957671958 | G17: 5.5 | H17: 921 | I17: 921 | J17: 921 | K17: 921 | L17: 1110 | M17: 1110 | N17: 1110 | O17: 999 | P17: 974 | Q17: 974 | R17: 236.3345087 | S17: 240 | T17: 0.1354411765 | U17: 0.1550505051 | V17: 0.1582474227 | W17: 0.1747628083 | X17: 0.1632352941 | Y17: 0.1828665568 | Z17: 0.1957671958 | AA17: 0.13875 | AB17: 0.1596721311 | AC17: 0.1873076923 | AD17: 0.1152851262 | AE17: 0.1021276596
D18: 6 | E18: =INDEX(T18:AE18,$E$2) -> 0.2513461538 | F18: =INDEX(T18:AF18,$F$2) -> 0.257319224 | G18: 6 | H18: 1214 | I18: 1214 | J18: 1214 | K18: 1215 | L18: 1458 | M18: 1458 | N18: 1459 | O18: 1340 | P18: 1307 | Q18: 1307 | R18: 321 | S18: 321 | T18: 0.1785294118 | U18: 0.2043771044 | V18: 0.2085910653 | W18: 0.2305502846 | X18: 0.2144117647 | Y18: 0.2401976936 | Z18: 0.257319224 | AA18: 0.1861111111 | AB18: 0.2142622951 | AC18: 0.2513461538 | AD18: 0.1565853659 | AE18: 0.1365957447
D19: 6.5 | E19: =INDEX(T19:AE19,$E$2) -> 0.3263461538 | F19: =INDEX(T19:AF19,$F$2) -> 0.3294532628 | G19: 6.5 | H19: 1559 | I19: 1559 | J19: 1559 | K19: 1555 | L19: 1868 | M19: 1868 | N19: 1868 | O19: 1739 | P19: 1697 | Q19: 1697 | R19: 413.2456896 | S19: 418 | T19: 0.2292647059 | U19: 0.2624579125 | V19: 0.2678694158 | W19: 0.2950664137 | X19: 0.2747058824 | Y19: 0.3077429984 | Z19: 0.3294532628 | AA19: 0.2415277778 | AB19: 0.2781967213 | AC19: 0.3263461538 | AD19: 0.2015832632 | AE19: 0.1778723404
D20: 7 | E20: =INDEX(T20:AE20,$E$2) -> 0.4136538462 | F20: =INDEX(T20:AF20,$F$2) -> 0.4134038801 | G20: 7 | H20: 1960 | I20: 1960 | J20: 1959 | K20: 1919 | L20: 2344 | M20: 2344 | N20: 2344 | O20: 2203 | P20: 2150 | Q20: 2151 | R20: 532 | S20: 532 | T20: 0.2882352941 | U20: 0.32996633 | V20: 0.3365979381 | W20: 0.3641366224 | X20: 0.3447058824 | Y20: 0.3861614498 | Z20: 0.4134038801 | AA20: 0.3059722222 | AB20: 0.3524590164 | AC20: 0.4136538462 | AD20: 0.2595121951 | AE20: 0.2263829787
D21: 7.5 | E21: =INDEX(T21:AE21,$E$2) -> 0.5130769231 | F21: =INDEX(T21:AF21,$F$2) -> 0.50670194 | G21: 7.5 | H21: 2420 | I21: 2406 | J21: 2396 | K21: 2277 | L21: 2891 | M21: 2891 | N21: 2873 | O21: 2729 | P21: 2666 | Q21: 2668 | R21: 658.4679187 | S21: 664 | T21: 0.3558823529 | U21: 0.4050505051 | V21: 0.4116838488 | W21: 0.4320683112 | X21: 0.4251470588 | Y21: 0.476276771 | Z21: 0.50670194 | AA21: 0.3790277778 | AB21: 0.4370491803 | AC21: 0.5130769231 | AD21: 0.3212038628 | AE21: 0.2825531915
D22: 8 | E22: =INDEX(T22:AE22,$E$2) -> 0.6205769231 | F22: =INDEX(T22:AF22,$F$2) -> 0.6024691358 | G22: 8 | H22: 2944 | I22: 2865 | J22: 2837 | K22: 2614 | L22: 3509 | M22: 3494 | N22: 3416 | O22: 3324 | P22: 3251 | Q22: 3227 | R22: 815 | S22: 815 | T22: 0.4329411765 | U22: 0.4823232323 | V22: =J22/MAX(J$6:J$56) -> 0.4874570447 | W22: =K22/MAX(K$6:K$56) -> 0.4960151803 | X22: =L22/MAX(L$6:L$56) -> 0.5160294118 | Y22: =M22/MAX(M$6:M$56) -> 0.5756177924 | Z22: =N22/MAX(N$6:N$56) -> 0.6024691358 | AA22: =O22/MAX(O$6:O$56) -> 0.4616666667 | AB22: =P22/MAX(P$6:P$56) -> 0.5329508197 | AC22: =Q22/MAX(Q$6:Q$56) -> 0.6205769231 | AD22: =R22/MAX(R$6:R$56) -> 0.3975609756 | AE22: =S22/MAX(S$6:S$56) -> 0.3468085106
D23: 8.5 | E23: =INDEX(T23:AE23,$E$2) -> 0.7269230769 | F23: =INDEX(T23:AF23,$F$2) -> 0.6964726631 | G23: 8.5 | H23: 3520 | I23: 3313 | J23: 3264 | K23: 2921 | L23: 4163 | M23: 4112 | N23: 3949 | O23: 3986 | P23: 3903 | Q23: 3780 | R23: 980.663041 | S23: 988 | T23: 0.5176470588 | U23: 0.5577441077 | V23: 0.5608247423 | W23: 0.5542694497 | X23: 0.6122058824 | Y23: 0.6774299835 | Z23: 0.6964726631 | AA23: 0.5536111111 | AB23: 0.6398360656 | AC23: 0.7269230769 | AD23: 0.4783722151 | AE23: 0.4204255319
D24: 9 | E24: =INDEX(T24:AE24,$E$2) -> 0.8271153846 | F24: =INDEX(T24:AF24,$F$2) -> 0.785361552 | G24: 9 | H24: 4115 | I24: 3736 | J24: 3662 | K24: 3203 | L24: 4815 | M24: 4719 | N24: 4453 | O24: 4685 | P24: 4570 | Q24: 4301 | R24: 1180 | S24: 1180 | T24: 0.6051470588 | U24: 0.628956229 | V24: 0.629209622 | W24: 0.6077798861 | X24: 0.7080882353 | Y24: 0.7774299835 | Z24: 0.785361552 | AA24: 0.6506944444 | AB24: 0.7491803279 | AC24: 0.8271153846 | AD24: 0.5756097561 | AE24: 0.5021276596
D25: 9.5 | E25: =INDEX(T25:AE25,$E$2) -> 0.9205769231 | F25: =INDEX(T25:AF25,$F$2) -> 0.8617283951 | G25: 9.5 | H25: 4701 | I25: 4124 | J25: 4025 | K25: 3471 | L25: 5437 | M25: 5224 | N25: 4886 | O25: 5314 | P25: 5206 | Q25: 4787 | R25: 1365.430335 | S25: 1384 | T25: 0.6913235294 | U25: 0.6942760943 | V25: 0.691580756 | W25: 0.6586337761 | X25: 0.7995588235 | Y25: 0.8606260297 | Z25: 0.8617283951 | AA25: 0.7380555556 | AB25: 0.853442623 | AC25: 0.9205769231 | AD25: 0.6660635781 | AE25: 0.5889361702
D26: 10 | E26: =INDEX(T26:AE26,$E$2) -> 1 | F26: =INDEX(T26:AF26,$F$2) -> 0.9174603175 | G26: 10 | H26: 5267 | I26: 4483 | J26: 4364 | K26: 3731 | L26: 5940 | M26: 5590 | N26: 5202 | O26: 5904 | P26: 5774 | Q26: 5200 | R26: 1580 | S26: 1580 | T26: 0.7745588235 | U26: 0.7547138047 | V26: 0.7498281787 | W26: 0.7079696395 | X26: 0.8735294118 | Y26: 0.92092257 | Z26: 0.9174603175 | AA26: 0.82 | AB26: 0.946557377 | AC26: 1 | AD26: 0.7707317073 | AE26: 0.6723404255
D27: 10.5 | E27: =INDEX(T27:AE27,$E$2) -> 1 | F27: =INDEX(T27:AF27,$F$2) -> 0.9566137566 | G27: 10.5 | H27: 5771 | I27: 4824 | J27: 4688 | K27: 3980 | L27: 6304 | M27: 5836 | N27: 5424 | O27: 6441 | P27: 6100 | Q27: 5200 | R27: 1691.09432 | S27: 1749 | T27: 0.8486764706 | U27: 0.8121212121 | V27: 0.8054982818 | W27: 0.7552182163 | X27: 0.9270588235 | Y27: 0.9614497529 | Z27: 0.9566137566 | AA27: 0.8945833333 | AB27: 1 | AC27: 1 | AD27: 0.8249240587 | AE27: 0.7442553191
D28: 11 | E28: =INDEX(T28:AE28,$E$2) -> 1 | F28: =INDEX(T28:AF28,$F$2) -> 0.9816578483 | G28: 11 | H28: 6148 | I28: 5140 | J28: 4996 | K28: 4217 | L28: 6549 | M28: 5987 | N28: 5566 | O28: 6854 | P28: 6100 | Q28: 5200 | R28: 1810 | S28: 1890 | T28: 0.9041176471 | U28: 0.8653198653 | V28: 0.858419244 | W28: 0.8001897533 | X28: 0.9630882353 | Y28: 0.9863261944 | Z28: 0.9816578483 | AA28: 0.9519444444 | AB28: 1 | AC28: 1 | AD28: 0.8829268293 | AE28: 0.8042553191
D29: 11.5 | E29: =INDEX(T29:AE29,$E$2) -> 1 | F29: =INDEX(T29:AF29,$F$2) -> 0.9952380952 | G29: 11.5 | H29: 6421 | I29: 5398 | J29: 5254 | K29: 4445 | L29: 6703 | M29: 6056 | N29: 5643 | O29: 7078 | P29: 6100 | Q29: 5200 | R29: 1893.092708 | S29: 2005 | T29: 0.9442647059 | U29: 0.9087542088 | V29: 0.9027491409 | W29: 0.8434535104 | X29: 0.9857352941 | Y29: 0.997693575 | Z29: 0.9952380952 | AA29: 0.9830555556 | AB29: 1 | AC29: 1 | AD29: 0.9234598574 | AE29: 0.8531914894
D30: 12 | E30: =INDEX(T30:AE30,$E$2) -> 1 | F30: =INDEX(T30:AF30,$F$2) -> 1 | G30: 12 | H30: 6611 | I30: 5595 | J30: 5453 | K30: 4663 | L30: 6780 | M30: 6070 | N30: 5670 | O30: 7160 | P30: 6100 | Q30: 5200 | R30: 1980 | S30: 2100 | T30: 0.9722058824 | U30: 0.9419191919 | V30: 0.9369415808 | W30: 0.8848197343 | X30: 0.9970588235 | Y30: 1 | Z30: 1 | AA30: 0.9944444444 | AB30: 1 | AC30: 1 | AD30: 0.9658536585 | AE30: 0.8936170213
D31: 12.5 | E31: =INDEX(T31:AE31,$E$2) -> 1 | F31: =INDEX(T31:AF31,$F$2) -> 1 | G31: 12.5 | H31: 6731 | I31: 5741 | J31: 5603 | K31: 4845 | L31: 6800 | M31: 6070 | N31: 5670 | O31: 7195 | P31: 6100 | Q31: 5200 | R31: 2014.696007 | S31: 2180 | T31: 0.9898529412 | U31: 0.9664983165 | V31: 0.9627147766 | W31: 0.9193548387 | X31: 1 | Y31: 1 | Z31: 1 | AA31: 0.9993055556 | AB31: 1 | AC31: 1 | AD31: 0.9827785399 | AE31: 0.9276595745
D32: 13 | E32: =INDEX(T32:AE32,$E$2) -> 1 | F32: =INDEX(T32:AF32,$F$2) -> 1 | G32: 13 | H32: 6791 | I32: 5844 | J32: 5710 | K32: 4985 | L32: 6800 | M32: 6070 | N32: 5670 | O32: 7200 | P32: 6100 | Q32: 5200 | R32: 2050 | S32: 2250 | T32: 0.9986764706 | U32: 0.9838383838 | V32: 0.9810996564 | W32: 0.9459203036 | X32: 1 | Y32: 1 | Z32: 1 | AA32: 1 | AB32: 1 | AC32: 1 | AD32: 1 | AE32: 0.9574468085
D33: 13.5 | E33: =INDEX(T33:AE33,$E$2) -> 1 | F33: =INDEX(T33:AF33,$F$2) -> 1 | G33: 13.5 | H33: 6800 | I33: 5907 | J33: 5779 | K33: 5091 | L33: 6800 | M33: 6070 | N33: 5670 | O33: 7200 | P33: 6100 | Q33: 5200 | R33: 2050 | S33: 2311 | T33: 1 | U33: 0.9944444444 | V33: 0.9929553265 | W33: 0.9660341556 | X33: 1 | Y33: 1 | Z33: 1 | AA33: 1 | AB33: 1 | AC33: 1 | AD33: 1 | AE33: 0.9834042553
D34: 14 | E34: =INDEX(T34:AE34,$E$2) -> 1 | F34: =INDEX(T34:AF34,$F$2) -> 1 | G34: 14 | H34: 6800 | I34: 5935 | J34: 5813 | K34: 5169 | L34: 6800 | M34: 6070 | N34: 5670 | O34: 7200 | P34: 6100 | Q34: 5200 | R34: 2050 | S34: 2350 | T34: 1 | U34: 0.9991582492 | V34: 0.9987972509 | W34: 0.9808349146 | X34: 1 | Y34: 1 | Z34: 1 | AA34: 1 | AB34: 1 | AC34: 1 | AD34: 1 | AE34: 1
D35: 14.5 | E35: =INDEX(T35:AE35,$E$2) -> 1 | F35: =INDEX(T35:AF35,$F$2) -> 1 | G35: 14.5 | H35: 6800 | I35: 5940 | J35: 5820 | K35: 5225 | L35: 6800 | M35: 6070 | N35: 5670 | O35: 7200 | P35: 6100 | Q35: 5200 | R35: 2050 | S35: 2350 | T35: 1 | U35: 1 | V35: 1 | W35: 0.9914611006 | X35: 1 | Y35: 1 | Z35: 1 | AA35: 1 | AB35: 1 | AC35: 1 | AD35: 1 | AE35: 1
D36: 15 | E36: =INDEX(T36:AE36,$E$2) -> 1 | F36: =INDEX(T36:AF36,$F$2) -> 1 | G36: 15 | H36: 6800 | I36: 5940 | J36: 5820 | K36: 5258 | L36: 6800 | M36: 6070 | N36: 5670 | O36: 7200 | P36: 6100 | Q36: 5200 | R36: 2050 | S36: 2350 | T36: 1 | U36: 1 | V36: 1 | W36: 0.9977229602 | X36: 1 | Y36: 1 | Z36: 1 | AA36: 1 | AB36: 1 | AC36: 1 | AD36: 1 | AE36: 1
D37: 15.5 | E37: =INDEX(T37:AE37,$E$2) -> 1 | F37: =INDEX(T37:AF37,$F$2) -> 1 | G37: 15.5 | H37: 6800 | I37: 5940 | J37: 5820 | K37: 5270 | L37: 6800 | M37: 6070 | N37: 5670 | O37: 7200 | P37: 6100 | Q37: 5200 | R37: 2050 | S37: 2350 | T37: 1 | U37: 1 | V37: 1 | W37: 1 | X37: 1 | Y37: 1 | Z37: 1 | AA37: 1 | AB37: 1 | AC37: 1 | AD37: 1 | AE37: 1
D38: 16 | E38: =INDEX(T38:AE38,$E$2) -> 1 | F38: =INDEX(T38:AF38,$F$2) -> 1 | G38: 16 | H38: 6800 | I38: 5940 | J38: 5820 | K38: 5270 | L38: 6793 | M38: 6070 | N38: 5670 | O38: 7200 | P38: 6100 | Q38: 5200 | R38: 2050 | S38: 2350 | T38: 1 | U38: 1 | V38: 1 | W38: 1 | X38: 0.9989705882 | Y38: 1 | Z38: 1 | AA38: 1 | AB38: 1 | AC38: 1 | AD38: 1 | AE38: 1
D39: 16.5 | E39: =INDEX(T39:AE39,$E$2) -> 0.9653846154 | F39: =INDEX(T39:AF39,$F$2) -> 1 | G39: 16.5 | H39: 6800 | I39: 5940 | J39: 5820 | K39: 5270 | L39: 6752 | M39: 6070 | N39: 5670 | O39: 7200 | P39: 5887 | Q39: 5020 | R39: 2050 | S39: 2350 | T39: 1 | U39: 1 | V39: 1 | W39: 1 | X39: 0.9929411765 | Y39: 1 | Z39: 1 | AA39: 1 | AB39: 0.9650819672 | AC39: 0.9653846154 | AD39: 1 | AE39: 1
D40: 17 | E40: =INDEX(T40:AE40,$E$2) -> 0.9305769231 | F40: =INDEX(T40:AF40,$F$2) -> 1 | G40: 17 | H40: 6800 | I40: 5940 | J40: 5820 | K40: 5270 | L40: 6705 | M40: 6070 | N40: 5670 | O40: 7200 | P40: 5674 | Q40: 4839 | R40: 2050 | S40: 2350 | T40: 1 | U40: 1 | V40: 1 | W40: 1 | X40: 0.9860294118 | Y40: 1 | Z40: 1 | AA40: 1 | AB40: 0.9301639344 | AC40: 0.9305769231 | AD40: 1 | AE40: 1
D41: 17.5 | E41: =INDEX(T41:AE41,$E$2) -> 0.8959615385 | F41: =INDEX(T41:AF41,$F$2) -> 1 | G41: 17.5 | H41: 6800 | I41: 5940 | J41: 5820 | K41: 5270 | L41: 6589 | M41: 6070 | N41: 5670 | O41: 7194 | P41: 5461 | Q41: 4659 | R41: 2050 | S41: 2350 | T41: 1 | U41: 1 | V41: 1 | W41: 1 | X41: 0.9689705882 | Y41: 1 | Z41: 1 | AA41: 0.9991666667 | AB41: 0.8952459016 | AC41: 0.8959615385 | AD41: 1 | AE41: 1
D42: 18 | E42: =INDEX(T42:AE42,$E$2) -> 0.8613461538 | F42: =INDEX(T42:AF42,$F$2) -> 1 | G42: 18 | H42: 6800 | I42: 5940 | J42: 5820 | K42: 5270 | L42: 6453 | M42: 6070 | N42: 5670 | O42: 7124 | P42: 5248 | Q42: 4479 | R42: 2050 | S42: 2350 | T42: 1 | U42: 1 | V42: 1 | W42: 1 | X42: 0.9489705882 | Y42: 1 | Z42: 1 | AA42: 0.9894444444 | AB42: 0.8603278689 | AC42: 0.8613461538 | AD42: 1 | AE42: 1
D43: 18.5 | E43: =INDEX(T43:AE43,$E$2) -> 0.8265384615 | F43: =INDEX(T43:AF43,$F$2) -> 1 | G43: 18.5 | H43: 6800 | I43: 5940 | J43: 5820 | K43: 5270 | L43: 6256 | M43: 6070 | N43: 5670 | O43: 6959 | P43: 5035 | Q43: 4298 | R43: 2050 | S43: 2350 | T43: 1 | U43: 1 | V43: 1 | W43: 1 | X43: 0.92 | Y43: 1 | Z43: 1 | AA43: 0.9665277778 | AB43: 0.8254098361 | AC43: 0.8265384615 | AD43: 1 | AE43: 1
D44: 19 | E44: =INDEX(T44:AE44,$E$2) -> 0.7919230769 | F44: =INDEX(T44:AF44,$F$2) -> 1 | G44: 19 | H44: 6800 | I44: 5940 | J44: 5820 | K44: 5270 | L44: 6045 | M44: 6017 | N44: 5670 | O44: 6789 | P44: 4822 | Q44: 4118 | R44: 2050 | S44: 2350 | T44: 1 | U44: 1 | V44: 1 | W44: 1 | X44: 0.8889705882 | Y44: 0.9912685338 | Z44: 1 | AA44: 0.9429166667 | AB44: 0.7904918033 | AC44: 0.7919230769 | AD44: 1 | AE44: 1
D45: 19.5 | E45: =INDEX(T45:AE45,$E$2) -> 0.7573076923 | F45: =INDEX(T45:AF45,$F$2) -> 0.9991181658 | G45: 19.5 | H45: 6800 | I45: 5940 | J45: 5820 | K45: 5270 | L45: 5855 | M45: 5855 | N45: 5665 | O45: 6630 | P45: 4609 | Q45: 3938 | R45: 2050 | S45: 2350 | T45: 1 | U45: 1 | V45: 1 | W45: 1 | X45: 0.8610294118 | Y45: 0.9645799012 | Z45: 0.9991181658 | AA45: 0.9208333333 | AB45: 0.7555737705 | AC45: 0.7573076923 | AD45: 1 | AE45: 1
D46: 20 | E46: =INDEX(T46:AE46,$E$2) -> 0.7225 | F46: =INDEX(T46:AF46,$F$2) -> 0.9954144621 | G46: 20 | H46: 6800 | I46: 5940 | J46: 5820 | K46: 5270 | L46: 5644 | M46: 5644 | N46: 5644 | O46: 6472 | P46: 4396 | Q46: 3757 | R46: 2050 | S46: 2350 | T46: 1 | U46: 1 | V46: 1 | W46: 1 | X46: 0.83 | Y46: 0.9298187809 | Z46: 0.9954144621 | AA46: 0.8988888889 | AB46: 0.7206557377 | AC46: 0.7225 | AD46: 1 | AE46: 1
D47: 20.5 | E47: =INDEX(T47:AE47,$E$2) -> 0.6878846154 | F47: =INDEX(T47:AF47,$F$2) -> 0 | G47: 20.5 | H47: 6603 | K47: 5270 | O47: 6262 | P47: 4183 | Q47: 3577 | R47: 2050 | S47: 2350 | T47: 0.9710294118 | U47: 0 | V47: 0 | W47: 1 | X47: 0 | Y47: 0 | Z47: 0 | AA47: 0.8697222222 | AB47: 0.6857377049 | AC47: 0.6878846154 | AD47: 1 | AE47: 1
D48: 21 | E48: =INDEX(T48:AE48,$E$2) -> 0.6532692308 | F48: =INDEX(T48:AF48,$F$2) -> 0 | G48: 21 | H48: 6331 | K48: 5270 | O48: 5946 | P48: 3970 | Q48: 3397 | R48: 2050 | S48: 2350 | T48: 0.9310294118 | U48: 0 | V48: 0 | W48: 1 | X48: 0 | Y48: 0 | Z48: 0 | AA48: 0.8258333333 | AB48: 0.6508196721 | AC48: 0.6532692308 | AD48: 1 | AE48: 1
D49: 21.5 | E49: =INDEX(T49:AE49,$E$2) -> 0.6184615385 | F49: =INDEX(T49:AF49,$F$2) -> 0 | G49: 21.5 | H49: 6059 | K49: 5270 | O49: 5538 | P49: 3757 | Q49: 3216 | R49: 2050 | S49: 2350 | T49: 0.8910294118 | U49: 0 | V49: 0 | W49: 1 | X49: 0 | Y49: 0 | Z49: 0 | AA49: 0.7691666667 | AB49: 0.6159016393 | AC49: 0.6184615385 | AD49: 1 | AE49: 1
D50: 22 | E50: =INDEX(T50:AE50,$E$2) -> 0.5838461538 | F50: =INDEX(T50:AF50,$F$2) -> 0 | G50: 22 | H50: 5794 | K50: 5270 | O50: 5069 | P50: 3544 | Q50: 3036 | R50: 2050 | S50: 2350 | T50: 0.8520588235 | U50: 0 | V50: 0 | W50: 1 | X50: 0 | Y50: 0 | Z50: 0 | AA50: 0.7040277778 | AB50: 0.5809836066 | AC50: 0.5838461538 | AD50: 1 | AE50: 1
D51: 22.5 | E51: =INDEX(T51:AE51,$E$2) -> 0.5492307692 | F51: =INDEX(T51:AF51,$F$2) -> 0 | G51: 22.5 | H51: 5528 | K51: 5270 | O51: 4597 | P51: 3331 | Q51: 2856 | R51: 2050 | S51: 2350 | T51: 0.8129411765 | U51: 0 | V51: 0 | W51: 1 | X51: 0 | Y51: 0 | Z51: 0 | AA51: 0.6384722222 | AB51: 0.5460655738 | AC51: 0.5492307692 | AD51: 1 | AE51: 1
D52: 23 | E52: =INDEX(T52:AE52,$E$2) -> 0.5144230769 | F52: =INDEX(T52:AF52,$F$2) -> 0 | G52: 23 | H52: 5270 | K52: 5270 | O52: 4121 | P52: 3118 | Q52: 2675 | R52: 2050 | S52: 2350 | T52: 0.775 | U52: 0 | V52: 0 | W52: 1 | X52: 0 | Y52: 0 | Z52: 0 | AA52: 0.5723611111 | AB52: 0.511147541 | AC52: 0.5144230769 | AD52: 1 | AE52: 1
D53: 23.5 | E53: =INDEX(T53:AE53,$E$2) -> 0.4798076923 | F53: =INDEX(T53:AF53,$F$2) -> 0 | G53: 23.5 | H53: 5012 | K53: 5012 | O53: 3636 | P53: 2905 | Q53: 2495 | R53: 2050 | S53: 2346 | T53: 0.7370588235 | U53: 0 | V53: 0 | W53: 0.9510436433 | X53: 0 | Y53: 0 | Z53: 0 | AA53: 0.505 | AB53: 0.4762295082 | AC53: 0.4798076923 | AD53: 1 | AE53: 0.9982978723
D54: 24 | E54: =INDEX(T54:AE54,$E$2) -> 0.4451923077 | F54: =INDEX(T54:AF54,$F$2) -> 0 | G54: 24 | H54: 4760 | K54: 4760 | O54: 3169 | P54: 2692 | Q54: 2315 | R54: 2050 | S54: 2339 | T54: 0.7 | U54: 0 | V54: 0 | W54: 0.9032258065 | X54: 0 | Y54: 0 | Z54: 0 | AA54: 0.4401388889 | AB54: 0.4413114754 | AC54: 0.4451923077 | AD54: 1 | AE54: 0.9953191489
D55: 24.5 | E55: =INDEX(T55:AE55,$E$2) -> 0.4103846154 | F55: =INDEX(T55:AF55,$F$2) -> 0 | G55: 24.5 | H55: 4508 | K55: 4508 | O55: 2718 | P55: 2479 | Q55: 2134 | R55: 2050 | S55: 2350 | T55: 0.6629411765 | U55: 0 | V55: 0 | W55: 0.8554079696 | X55: 0 | Y55: 0 | Z55: 0 | AA55: 0.3775 | AB55: 0.4063934426 | AC55: 0.4103846154 | AD55: 1 | AE55: 1
D56: 25 | E56: =INDEX(T56:AE56,$E$2) -> 0.3757692308 | F56: =INDEX(T56:AF56,$F$2) -> 0 | G56: 25 | H56: 4264 | K56: 4264 | O56: 2328 | P56: 2266 | Q56: 1954 | R56: 2050 | T56: 0.6270588235 | U56: 0 | V56: 0 | W56: 0.8091081594 | X56: 0 | Y56: 0 | Z56: 0 | AA56: 0.3233333333 | AB56: 0.3714754098 | AC56: 0.3757692308 | AD56: 1 | AE56: 0
E63: =TRANSPOSE(H3:S3) -> Nordex Mode1
E64: Nordex Mode7
E65: Nordex Mode8
E66: Nordex Mode9
E67: Nordex Mode0
E68: Nordex Mode3
E69: Nordex Mode6
E70: Vestas PO7
E71: Vestas 6.1
E72: Vestas SO4
E73: Enercon Mode 0
E74: Enercon 2

Sheet All Power Curves
C3: Nordex Mode1 | D3: Nordex Mode1 | E3: Nordex Mode1 | H3: Nordex Mode7 | I3: Nordex Mode7 | M3: Nordex Mode8 | N3: Nordex Mode8 | R3: Nordex Mode9 | S3: Nordex Mode9 | W3: Nordex Mode0 | X3: Nordex Mode0 | AC3: Nordex Mode3 | AD3: Nordex Mode3 | AH3: Nordex Mode6 | AI3: Nordex Mode6 | AM3: Vestas PO7 | AN3: Vestas PO7 | AR3: Vestas 6.1 | AS3: Vestas 6.1 | AV3: Vestas SO4 | AW3: Vestas SO4 | BB3: Enercon Mode 0 | BC3: Enercon Mode 0 | BJ3: Enercon 2
C5: Wind Speed v (m/s) for Power | D5: Power P (kW) | E5: Wind Speed v (m/s) for Ct | F5: Thrust Coefficient Ct | H5: Wind Speed v (m/s) for Power | I5: Power P (kW) | J5: Wind Speed v (m/s) for Ct | K5: Thrust Coefficient Ct | M5: Wind Speed v (m/s) for Power | N5: Power P (kW) | O5: Wind Speed v (m/s) for Ct | P5: Thrust Coefficient Ct | R5: Wind Speed v (m/s) | S5: Power P (kW) | T5: Wind Speed v (m/s) | U5: Thrust Coefficient Ct | W5: Wind Speed v (m/s) | X5: Power P (kW) | Y5: Wind Speed v (m/s) | Z5: Thrust Coefficient Ct | AC5: Wind Speed v (m/s) | AD5: Power P (kW) | AE5: Wind Speed v (m/s) | AF5: Thrust Coefficient Ct | AH5: Wind Speed v (m/s) | AI5: Power P (kW) | AJ5: Wind Speed v (m/s) | AK5: Thrust Coefficient Ct | AM5: Wind Speed v (m/s) | AN5: Power P (kW) | AO5: Wind Speed v (m/s) | AP5: Thrust Coefficient Ct | AR5: Wind Speed (m/s) | AS5: Power (kW) | AT5: Thrust Coefficient (Ct) | AV5: Wind Speed v (m/s) | AW5: Power P (kW) | AX5: Wind Speed v (m/s) | AY5: Thrust Coefficient Ct | BC5: Wind Speed v (m/s) for Power | BD5: Power P (kW) | BE5: Wind Speed v (m/s) for Ct | BF5: Thrust Coefficient Ct | BI5: v (m/s) | BJ5: P_v (kW)
C6: 0 | H6: 0 | M6: 0 | R6: 0 | W6: 0 | BA6: =C6 -> 0 | BB6: =interpolate_look_up(BA6,BC:BC,BD:BD) -> 0 | BC6: 0 | BI6: 0 | BJ6: 0
C7: 0.5 | H7: 0.5 | M7: 0.5 | R7: 0.5 | W7: 0.5 | BA7: =C7 -> 0.5 | BB7: =interpolate_look_up(BA7,BC:BC,BD:BD) -> 0 | BC7: 1 | BD7: 1 | BE7: 1 | BF7: 0 | BI7: 0.5 | BJ7: 0
C8: 1 | H8: 1 | M8: 1 | R8: 1 | W8: 1 | BA8: 1 | BB8: =interpolate_look_up(BA8,BC:BC,BD:BD) -> 1 | BC8: 2 | BD8: 3 | BE8: 2 | BF8: 0.781 | BI8: 1 | BJ8: 0
C9: 1.5 | H9: 1.5 | M9: 1.5 | R9: 1.5 | W9: 1.5 | BA9: 1.5 | BB9: =interpolate_look_up(BA9,BC:BC,BD:BD) -> 1.732050808 | BC9: 3 | BD9: 25 | BE9: 3 | BF9: 0.785 | BI9: 1.5 | BJ9: 0
C10: 2 | H10: 2 | M10: 2 | R10: 2 | W10: 2 | BA10: 2 | BB10: =interpolate_look_up(BA10,BC:BC,BD:BD) -> 3 | BC10: 4 | BD10: 82 | BE10: 4 | BF10: 0.774 | BI10: 2 | BJ10: 0
C11: 2.5 | H11: 2.5 | M11: 2.5 | R11: 2.5 | W11: 2.5 | BA11: 2.5 | BB11: =interpolate_look_up(BA11,BC:BC,BD:BD) -> 8.660254038 | BC11: 5 | BD11: 174 | BE11: 5 | BF11: 0.781 | BI11: 2.5 | BJ11: 10
C12: 3 | D12: 45 | E12: =C12 -> 3 | F12: 0.892 | H12: 3 | I12: 45 | J12: =H12 -> 3 | K12: 0.892 | M12: 3 | N12: 45 | O12: 3 | P12: 0.892 | R12: 3 | S12: 45 | T12: 3 | U12: 0.892 | W12: 3 | X12: 74 | Y12: 3 | Z12: 0.874 | AC12: 3 | AD12: 74 | AE12: 3 | AF12: 0.874 | AH12: 3 | AI12: 74 | AJ12: 3 | AK12: 0.874 | AM12: 3 | AN12: 32 | AO12: 3 | AP12: 0.969 | AR12: 3 | AS12: 32 | AT12: 0.969 | AV12: 3 | AW12: 32 | AX12: 3 | AY12: 0.969 | BA12: 3 | BB12: =interpolate_look_up(BA12,BC:BC,BD:BD) -> 25 | BC12: 6 | BD12: 321 | BE12: 6 | BF12: 0.777 | BI12: 3 | BJ12: 25
C13: 3.5 | D13: 150 | E13: =C13 -> 3.5 | F13: 0.866 | H13: 3.5 | I13: 150 | J13: =H13 -> 3.5 | K13: 0.866 | M13: 3.5 | N13: 150 | O13: 3.5 | P13: 0.866 | R13: 3.5 | S13: 150 | T13: 3.5 | U13: 0.866 | W13: 3.5 | X13: 195 | Y13: 3.5 | Z13: 0.867 | AC13: 3.5 | AD13: 195 | AE13: 3.5 | AF13: 0.867 | AH13: 3.5 | AI13: 195 | AJ13: 3.5 | AK13: 0.867 | AM13: 3.5 | AN13: 129 | AO13: 3.5 | AP13: 0.885 | AR13: 3.5 | AS13: 129 | AT13: 0.885 | AV13: 3.5 | AW13: 129 | AX13: 3.5 | AY13: 0.885 | BA13: 3.5 | BB13: =interpolate_look_up(BA13,BC:BC,BD:BD) -> 45.27692569 | BC13: 7 | BD13: 532 | BE13: 7 | BF13: 0.778 | BI13: 3.5 | BJ13: 49
C14: 4 | D14: 291 | E14: =C14 -> 4 | F14: 0.845 | H14: 4 | I14: 291 | J14: 4 | K14: 0.845 | M14: 4 | N14: 291 | O14: 4 | P14: 0.845 | R14: 4 | S14: 291 | T14: 4 | U14: 0.845 | W14: 4 | X14: 360 | Y14: 4 | Z14: 0.852 | AC14: 4 | AD14: 360 | AE14: 4 | AF14: 0.852 | AH14: 4 | AI14: 360 | AJ14: 4 | AK14: 0.852 | AM14: 4 | AN14: 288 | AO14: 4 | AP14: 0.834 | AR14: 4 | AS14: 288 | AT14: 0.831 | AV14: 4 | AW14: 288 | AX14: 4 | AY14: 0.832 | BA14: 4 | BB14: =interpolate_look_up(BA14,BC:BC,BD:BD) -> 82 | BC14: 8 | BD14: 815 | BE14: 8 | BF14: 0.775 | BI14: 4 | BJ14: 82
C15: 4.5 | D15: 465 | E15: =C15 -> 4.5 | F15: 0.83 | H15: 4.5 | I15: 465 | J15: 4.5 | K15: 0.83 | M15: 4.5 | N15: 465 | O15: 4.5 | P15: 0.83 | R15: 4.5 | S15: 465 | T15: 4.5 | U15: 0.83 | W15: 4.5 | X15: 567 | Y15: 4.5 | Z15: 0.839 | AC15: 4.5 | AD15: 567 | AE15: 4.5 | AF15: 0.839 | AH15: 4.5 | AI15: 567 | AJ15: 4.5 | AK15: 0.839 | AM15: 4.5 | AN15: 481 | AO15: 4.5 | AP15: 0.818 | AR15: 4.5 | AS15: 471 | AT15: 0.817 | AV15: 4.5 | AW15: 471 | AX15: 4.5 | AY15: 0.816 | BA15: 4.5 | BB15: =interpolate_look_up(BA15,BC:BC,BD:BD) -> 119.4487338 | BC15: 9 | BD15: 1180 | BE15: 9 | BF15: 0.769 | BI15: 4.5 | BJ15: 123
C16: 5 | D16: 674 | E16: =C16 -> 5 | F16: 0.82 | H16: 5 | I16: 674 | J16: 5 | K16: 0.82 | M16: 5 | N16: 674 | O16: 5 | P16: 0.82 | R16: 5 | S16: 674 | T16: 5 | U16: 0.82 | W16: 5 | X16: 815 | Y16: 5 | Z16: 0.83 | AC16: 5 | AD16: 815 | AE16: 5 | AF16: 0.83 | AH16: 5 | AI16: 815 | AJ16: 5 | AK16: 0.83 | AM16: 5 | AN16: 715 | AO16: 5 | AP16: 0.812 | AR16: 5 | AS16: 698 | AT16: 0.812 | AV16: 5 | AW16: 697 | AX16: 5 | AY16: 0.812 | BA16: 5 | BB16: =interpolate_look_up(BA16,BC:BC,BD:BD) -> 174 | BC16: 10 | BD16: 1580 | BE16: 10 | BF16: 0.77 | BI16: 5 | BJ16: 174
C17: 5.5 | D17: 921 | E17: =C17 -> 5.5 | F17: 0.814 | H17: 5.5 | I17: 921 | J17: 5.5 | K17: 0.814 | M17: 5.5 | N17: 921 | O17: 5.5 | P17: 0.814 | R17: 5.5 | S17: 921 | T17: 5.5 | U17: 0.814 | W17: 5.5 | X17: 1110 | Y17: 5.5 | Z17: 0.824 | AC17: 5.5 | AD17: 1110 | AE17: 5.5 | AF17: 0.824 | AH17: 5.5 | AI17: 1110 | AJ17: 5.5 | AK17: 0.824 | AM17: 5.5 | AN17: 999 | AO17: 5.5 | AP17: 0.815 | AR17: 5.5 | AS17: 974 | AT17: 0.814 | AV17: 5.5 | AW17: 974 | AX17: 5.5 | AY17: 0.814 | BA17: 5.5 | BB17: =interpolate_look_up(BA17,BC:BC,BD:BD) -> 236.3345087 | BC17: 11 | BD17: 1810 | BE17: 11 | BF17: 0.773 | BI17: 5.5 | BJ17: 240
C18: 6 | D18: 1214 | E18: =C18 -> 6 | F18: 0.809 | H18: 6 | I18: 1214 | J18: 6 | K18: 0.809 | M18: 6 | N18: 1214 | O18: 6 | P18: 0.809 | R18: 6 | S18: 1215 | T18: 6 | U18: 0.799 | W18: 6 | X18: 1458 | Y18: 6 | Z18: 0.82 | AC18: 6 | AD18: 1458 | AE18: 6 | AF18: 0.82 | AH18: 6 | AI18: 1459 | AJ18: 6 | AK18: 0.82 | AM18: 6 | AN18: 1340 | AO18: 6 | AP18: 0.814 | AR18: 6 | AS18: 1307 | AT18: 0.814 | AV18: 6 | AW18: 1307 | AX18: 6 | AY18: 0.814 | BA18: 6 | BB18: =interpolate_look_up(BA18,BC:BC,BD:BD) -> 321 | BC18: 12 | BD18: 1980 | BE18: 12 | BF18: 0.495 | BI18: 6 | BJ18: 321
C19: 6.5 | D19: 1559 | E19: =C19 -> 6.5 | F19: 0.806 | H19: 6.5 | I19: 1559 | J19: 6.5 | K19: 0.804 | M19: 6.5 | N19: 1559 | O19: 6.5 | P19: 0.8 | R19: 6.5 | S19: 1555 | T19: 6.5 | U19: 0.767 | W19: 6.5 | X19: 1868 | Y19: 6.5 | Z19: 0.817 | AC19: 6.5 | AD19: 1868 | AE19: 6.5 | AF19: 0.817 | AH19: 6.5 | AI19: 1868 | AJ19: 6.5 | AK19: 0.814 | AM19: 6.5 | AN19: 1739 | AO19: 6.5 | AP19: 0.81 | AR19: 6.5 | AS19: 1697 | AT19: 0.811 | AV19: 6.5 | AW19: 1697 | AX19: 6.5 | AY19: 0.811 | BA19: 6.5 | BB19: =interpolate_look_up(BA19,BC:BC,BD:BD) -> 413.2456896 | BC19: 13 | BD19: 2050 | BE19: 13 | BF19: 0.367 | BI19: 6.5 | BJ19: 418
C20: 7 | D20: 1960 | E20: =C20 -> 7 | F20: 0.806 | H20: 7 | I20: 1960 | J20: 7 | K20: 0.785 | M20: 7 | N20: 1959 | O20: 7 | P20: 0.777 | R20: 7 | S20: 1919 | T20: 7 | U20: 0.724 | W20: 7 | X20: 2344 | Y20: 7 | Z20: 0.816 | AC20: 7 | AD20: 2344 | AE20: 7 | AF20: 0.812 | AH20: 7 | AI20: 2344 | AJ20: 7 | AK20: 0.793 | AM20: 7 | AN20: 2203 | AO20: 7 | AP20: 0.805 | AR20: 7 | AS20: 2150 | AT20: 0.806 | AV20: 7 | AW20: 2151 | AX20: 7 | AY20: 0.806 | BA20: 7 | BB20: =interpolate_look_up(BA20,BC:BC,BD:BD) -> 532 | BC20: 14 | BD20: 2050 | BE20: 14 | BF20: 0.286 | BI20: 7 | BJ20: 532
C21: 7.5 | D21: 2420 | E21: =C21 -> 7.5 | F21: 0.801 | H21: 7.5 | I21: 2406 | J21: 7.5 | K21: 0.753 | M21: 7.5 | N21: 2396 | O21: 7.5 | P21: 0.742 | R21: 7.5 | S21: 2277 | T21: 7.5 | U21: 0.676 | W21: 7.5 | X21: 2891 | Y21: 7.5 | Z21: 0.804 | AC21: 7.5 | AD21: 2891 | AE21: 7.5 | AF21: 0.793 | AH21: 7.5 | AI21: 2873 | AJ21: 7.5 | AK21: 0.762 | AM21: 7.5 | AN21: 2729 | AO21: 7.5 | AP21: 0.797 | AR21: 7.5 | AS21: 2666 | AT21: 0.799 | AV21: 7.5 | AW21: 2668 | AX21: 7.5 | AY21: 0.799 | BA21: 7.5 | BB21: =interpolate_look_up(BA21,BC:BC,BD:BD) -> 658.4679187 | BC21: 15 | BD21: 2050 | BE21: 15 | BF21: 0.23 | BI21: 7.5 | BJ21: 664
C22: 8 | D22: 2944 | E22: =C22 -> 8 | F22: 0.784 | H22: 8 | I22: 2865 | J22: 8 | K22: 0.715 | M22: 8 | N22: 2837 | O22: 8 | P22: 0.701 | R22: 8 | S22: 2614 | T22: 8 | U22: 0.624 | W22: 8 | X22: 3509 | Y22: 8 | Z22: 0.779 | AC22: 8 | AD22: 3494 | AE22: 8 | AF22: 0.764 | AH22: 8 | AI22: 3416 | AJ22: 8 | AK22: 0.723 | AM22: 8 | AN22: 3324 | AO22: 8 | AP22: 0.788 | AR22: 8 | AS22: 3251 | AT22: 0.791 | AV22: 8 | AW22: 3227 | AX22: 8 | AY22: 0.787 | BA22: 8 | BB22: =interpolate_look_up(BA22,BC:BC,BD:BD) -> 815 | BC22: 16 | BD22: 2050 | BE22: 16 | BF22: 0.188 | BI22: 8 | BJ22: 815
C23: 8.5 | D23: 3520 | E23: =C23 -> 8.5 | F23: 0.758 | H23: 8.5 | I23: 3313 | J23: 8.5 | K23: 0.671 | M23: 8.5 | N23: 3264 | O23: 8.5 | P23: 0.656 | R23: 8.5 | S23: 2921 | T23: 8.5 | U23: 0.572 | W23: 8.5 | X23: 4163 | Y23: 8.5 | Z23: 0.747 | AC23: 8.5 | AD23: 4112 | AE23: 8.5 | AF23: 0.724 | AH23: 8.5 | AI23: 3949 | AJ23: 8.5 | AK23: 0.678 | AM23: 8.5 | AN23: 3986 | AO23: 8.5 | AP23: 0.777 | AR23: 8.5 | AS23: 3903 | AT23: 0.774 | AV23: 8.5 | AW23: 3780 | AX23: 8.5 | AY23: 0.747 | BA23: 8.5 | BB23: =interpolate_look_up(BA23,BC:BC,BD:BD) -> 980.663041 | BC23: 17 | BD23: 2050 | BE23: 17 | BF23: 0.156 | BI23: 8.5 | BJ23: 988
C24: 9 | D24: 4115 | E24: =C24 -> 9 | F24: 0.725 | H24: 9 | I24: 3736 | J24: 9 | K24: 0.625 | M24: 9 | N24: 3662 | O24: 9 | P24: 0.609 | R24: 9 | S24: 3203 | T24: 9 | U24: 0.52 | W24: 9 | X24: 4815 | Y24: 9 | Z24: 0.705 | AC24: 9 | AD24: 4719 | AE24: 9 | AF24: 0.675 | AH24: 9 | AI24: 4453 | AJ24: 9 | AK24: 0.627 | AM24: 9 | AN24: 4685 | AO24: 9 | AP24: 0.75 | AR24: 9 | AS24: 4570 | AT24: 0.731 | AV24: 9 | AW24: 4301 | AX24: 9 | AY24: 0.691 | BA24: 9 | BB24: =interpolate_look_up(BA24,BC:BC,BD:BD) -> 1180 | BC24: 18 | BD24: 2050 | BE24: 18 | BF24: 0.131 | BI24: 9 | BJ24: 1180
C25: 9.5 | D25: 4701 | E25: =C25 -> 9.5 | F25: 0.687 | H25: 9.5 | I25: 4124 | J25: 9.5 | K25: 0.579 | M25: 9.5 | N25: 4025 | O25: 9.5 | P25: 0.562 | R25: 9.5 | S25: 3471 | T25: 9.5 | U25: 0.47 | W25: 9.5 | X25: 5437 | Y25: 9.5 | Z25: 0.656 | AC25: 9.5 | AD25: 5224 | AE25: 9.5 | AF25: 0.621 | AH25: 9.5 | AI25: 4886 | AJ25: 9.5 | AK25: 0.573 | AM25: 9.5 | AN25: 5314 | AO25: 9.5 | AP25: 0.69 | AR25: 9.5 | AS25: 5206 | AT25: 0.675 | AV25: 9.5 | AW25: 4787 | AX25: 9.5 | AY25: 0.632 | BA25: 9.5 | BB25: =interpolate_look_up(BA25,BC:BC,BD:BD) -> 1365.430335 | BC25: 19 | BD25: 2050 | BE25: 19 | BF25: 0.111 | BI25: 9.5 | BJ25: 1384
C26: 10 | D26: 5267 | E26: =C26 -> 10 | F26: 0.642 | H26: 10 | I26: 4483 | J26: 10 | K26: 0.532 | M26: 10 | N26: 4364 | O26: 10 | P26: 0.515 | R26: 10 | S26: 3731 | T26: 10 | U26: 0.423 | W26: 10 | X26: 5940 | Y26: 10 | Z26: 0.605 | AC26: 10 | AD26: 5590 | AE26: 10 | AF26: 0.567 | AH26: 10 | AI26: 5202 | AJ26: 10 | AK26: 0.518 | AM26: 10 | AN26: 5904 | AO26: 10 | AP26: 0.628 | AR26: 10 | AS26: 5774 | AT26: 0.616 | AV26: 10 | AW26: 5200 | AX26: 10 | AY26: 0.575 | BA26: 10 | BB26: =interpolate_look_up(BA26,BC:BC,BD:BD) -> 1580 | BC26: 20 | BD26: 2050 | BE26: 20 | BF26: 0.096 | BI26: 10 | BJ26: 1580
C27: 10.5 | D27: 5771 | E27: =C27 -> 10.5 | F27: 0.595 | H27: 10.5 | I27: 4824 | J27: 10.5 | K27: 0.484 | M27: 10.5 | N27: 4688 | O27: 10.5 | P27: 0.468 | R27: 10.5 | S27: 3980 | T27: 10.5 | U27: 0.383 | W27: 10.5 | X27: 6304 | Y27: 10.5 | Z27: 0.552 | AC27: 10.5 | AD27: 5836 | AE27: 10.5 | AF27: 0.512 | AH27: 10.5 | AI27: 5424 | AJ27: 10.5 | AK27: 0.464 | AM27: 10.5 | AN27: 6441 | AO27: 10.5 | AP27: 0.571 | AR27: 10.5 | AS27: 6100 | AT27: 0.55 | AV27: 10.5 | AW27: 5200 | AX27: 10.5 | AY27: 0.514 | BA27: 10.5 | BB27: =interpolate_look_up(BA27,BC:BC,BD:BD) -> 1691.09432 | BC27: 21 | BD27: 2050 | BE27: 21 | BF27: 0.084 | BI27: 10.5 | BJ27: 1749
C28: 11 | D28: 6148 | E28: =C28 -> 11 | F28: 0.546 | H28: 11 | I28: 5140 | J28: 11 | K28: 0.438 | M28: 11 | N28: 4996 | O28: 11 | P28: 0.423 | R28: 11 | S28: 4217 | T28: 11 | U28: 0.348 | W28: 11 | X28: 6549 | Y28: 11 | Z28: 0.5 | AC28: 11 | AD28: 5987 | AE28: 11 | AF28: 0.459 | AH28: 11 | AI28: 5566 | AJ28: 11 | AK28: 0.413 | AM28: 11 | AN28: 6854 | AO28: 11 | AP28: 0.513 | AR28: 11 | AS28: 6100 | AT28: 0.482 | AV28: 11 | AW28: 5200 | AX28: 11 | AY28: 0.451 | BA28: 11 | BB28: =interpolate_look_up(BA28,BC:BC,BD:BD) -> 1810 | BC28: 22 | BD28: 2050 | BE28: 22 | BF28: 0.074 | BI28: 11 | BJ28: 1890
C29: 11.5 | D29: 6421 | E29: =C29 -> 11.5 | F29: 0.498 | H29: 11.5 | I29: 5398 | J29: 11.5 | K29: 0.395 | M29: 11.5 | N29: 5254 | O29: 11.5 | P29: 0.382 | R29: 11.5 | S29: 4445 | T29: 11.5 | U29: 0.317 | W29: 11.5 | X29: 6703 | Y29: 11.5 | Z29: 0.45 | AC29: 11.5 | AD29: 6056 | AE29: 11.5 | AF29: 0.408 | AH29: 11.5 | AI29: 5643 | AJ29: 11.5 | AK29: 0.367 | AM29: 11.5 | AN29: 7078 | AO29: 11.5 | AP29: 0.451 | AR29: 11.5 | AS29: 6100 | AT29: 0.416 | AV29: 11.5 | AW29: 5200 | AX29: 11.5 | AY29: 0.392 | BA29: 11.5 | BB29: =interpolate_look_up(BA29,BC:BC,BD:BD) -> 1893.092708 | BC29: 23 | BD29: 2050 | BE29: 23 | BF29: 0.066 | BI29: 11.5 | BJ29: 2005
C30: 12 | D30: 6611 | E30: =C30 -> 12 | F30: 0.45 | H30: 12 | I30: 5595 | J30: 12 | K30: 0.357 | M30: 12 | N30: 5453 | O30: 12 | P30: 0.346 | R30: 12 | S30: 4663 | T30: 12 | U30: 0.289 | W30: 12 | X30: 6780 | Y30: 12 | Z30: 0.401 | AC30: 12 | AD30: 6070 | AE30: 12 | AF30: 0.362 | AH30: 12 | AI30: 5670 | AJ30: 12 | AK30: 0.327 | AM30: 12 | AN30: 7160 | AO30: 12 | AP30: 0.392 | AR30: 12 | AS30: 6100 | AT30: 0.361 | AV30: 12 | AW30: 5200 | AX30: 12 | AY30: 0.342 | BA30: 12 | BB30: =interpolate_look_up(BA30,BC:BC,BD:BD) -> 1980 | BC30: 24 | BD30: 2050 | BE30: 24 | BF30: 0.059 | BI30: 12 | BJ30: 2100
C31: 12.5 | D31: 6731 | E31: =C31 -> 12.5 | F31: 0.405 | H31: 12.5 | I31: 5741 | J31: 12.5 | K31: 0.324 | M31: 12.5 | N31: 5603 | O31: 12.5 | P31: 0.313 | R31: 12.5 | S31: 4845 | T31: 12.5 | U31: 0.263 | W31: 12.5 | X31: 6800 | Y31: 12.5 | Z31: 0.358 | AC31: 12.5 | AD31: 6070 | AE31: 12.5 | AF31: 0.321 | AH31: 12.5 | AI31: 5670 | AJ31: 12.5 | AK31: 0.291 | AM31: 12.5 | AN31: 7195 | AO31: 12.5 | AP31: 0.341 | AR31: 12.5 | AS31: 6100 | AT31: 0.314 | AV31: 12.5 | AW31: 5200 | AX31: 12.5 | AY31: 0.3 | BA31: 12.5 | BB31: =interpolate_look_up(BA31,BC:BC,BD:BD) -> 2014.696007 | BC31: 25 | BD31: 2050 | BE31: 25 | BF31: 0.053 | BI31: 12.5 | BJ31: 2180
C32: 13 | D32: 6791 | E32: =C32 -> 13 | F32: 0.364 | H32: 13 | I32: 5844 | J32: 13 | K32: 0.293 | M32: 13 | N32: 5710 | O32: 13 | P32: 0.284 | R32: 13 | S32: 4985 | T32: 13 | U32: 0.24 | W32: 13 | X32: 6800 | Y32: 13 | Z32: 0.319 | AC32: 13 | AD32: 6070 | AE32: 13 | AF32: 0.284 | AH32: 13 | AI32: 5670 | AJ32: 13 | AK32: 0.259 | AM32: 13 | AN32: 7200 | AO32: 13 | AP32: 0.299 | AR32: 13 | AS32: 6100 | AT32: 0.275 | AV32: 13 | AW32: 5200 | AX32: 13 | AY32: 0.264 | BA32: 13 | BB32: =interpolate_look_up(BA32,BC:BC,BD:BD) -> 2050 | BI32: 13 | BJ32: 2250
C33: 13.5 | D33: 6800 | E33: =C33 -> 13.5 | F33: 0.327 | H33: 13.5 | I33: 5907 | J33: 13.5 | K33: 0.266 | M33: 13.5 | N33: 5779 | O33: 13.5 | P33: 0.258 | R33: 13.5 | S33: 5091 | T33: 13.5 | U33: 0.22 | W33: 13.5 | X33: 6800 | Y33: 13.5 | Z33: 0.284 | AC33: 13.5 | AD33: 6070 | AE33: 13.5 | AF33: 0.251 | AH33: 13.5 | AI33: 5670 | AJ33: 13.5 | AK33: 0.231 | AM33: 13.5 | AN33: 7200 | AO33: 13.5 | AP33: 0.264 | AR33: 13.5 | AS33: 6100 | AT33: 0.243 | AV33: 13.5 | AW33: 5200 | AX33: 13.5 | AY33: 0.234 | BA33: 13.5 | BB33: =interpolate_look_up(BA33,BC:BC,BD:BD) -> 2050 | BI33: 13.5 | BJ33: 2311
C34: 14 | D34: 6800 | E34: =C34 -> 14 | F34: 0.295 | H34: 14 | I34: 5935 | J34: 14 | K34: 0.242 | M34: 14 | N34: 5813 | O34: 14 | P34: 0.235 | R34: 14 | S34: 5169 | T34: 14 | U34: 0.201 | W34: 14 | X34: 6800 | Y34: 14 | Z34: 0.253 | AC34: 14 | AD34: 6070 | AE34: 14 | AF34: 0.223 | AH34: 14 | AI34: 5670 | AJ34: 14 | AK34: 0.206 | AM34: 14 | AN34: 7200 | AO34: 14 | AP34: 0.235 | AR34: 14 | AS34: 6100 | AT34: 0.217 | AV34: 14 | AW34: 5200 | AX34: 14 | AY34: 0.208 | BA34: 14 | BB34: =interpolate_look_up(BA34,BC:BC,BD:BD) -> 2050 | BI34: 14 | BJ34: 2350
C35: 14.5 | D35: 6800 | E35: =C35 -> 14.5 | F35: 0.265 | H35: 14.5 | I35: 5940 | J35: 14.5 | K35: 0.22 | M35: 14.5 | N35: 5820 | O35: 14.5 | P35: 0.214 | R35: 14.5 | S35: 5225 | T35: 14.5 | U35: 0.184 | W35: 14.5 | X35: 6800 | Y35: 14.5 | Z35: 0.226 | AC35: 14.5 | AD35: 6070 | AE35: 14.5 | AF35: 0.199 | AH35: 14.5 | AI35: 5670 | AJ35: 14.5 | AK35: 0.184 | AM35: 14.5 | AN35: 7200 | AO35: 14.5 | AP35: 0.21 | AR35: 14.5 | AS35: 6100 | AT35: 0.194 | AV35: 14.5 | AW35: 5200 | AX35: 14.5 | AY35: 0.186 | BA35: 14.5 | BB35: =interpolate_look_up(BA35,BC:BC,BD:BD) -> 2050 | BI35: 14.5 | BJ35: 2350
C36: 15 | D36: 6800 | E36: =C36 -> 15 | F36: 0.239 | H36: 15 | I36: 5940 | J36: 15 | K36: 0.2 | M36: 15 | N36: 5820 | O36: 15 | P36: 0.195 | R36: 15 | S36: 5258 | T36: 15 | U36: 0.169 | W36: 15 | X36: 6800 | Y36: 15 | Z36: 0.202 | AC36: 15 | AD36: 6070 | AE36: 15 | AF36: 0.179 | AH36: 15 | AI36: 5670 | AJ36: 15 | AK36: 0.165 | AM36: 15 | AN36: 7200 | AO36: 15 | AP36: 0.188 | AR36: 15 | AS36: 6100 | AT36: 0.174 | AV36: 15 | AW36: 5200 | AX36: 15 | AY36: 0.167 | BA36: 15 | BB36: =interpolate_look_up(BA36,BC:BC,BD:BD) -> 2050 | BI36: 15 | BJ36: 2350
C37: 15.5 | D37: 6800 | E37: =C37 -> 15.5 | F37: 0.215 | H37: 15.5 | I37: 5940 | J37: 15.5 | K37: 0.182 | M37: 15.5 | N37: 5820 | O37: 15.5 | P37: 0.178 | R37: 15.5 | S37: 5270 | T37: 15.5 | U37: 0.155 | W37: 15.5 | X37: 6800 | Y37: 15.5 | Z37: 0.182 | AC37: 15.5 | AD37: 6070 | AE37: 15.5 | AF37: 0.161 | AH37: 15.5 | AI37: 5670 | AJ37: 15.5 | AK37: 0.149 | AM37: 15.5 | AN37: 7200 | AO37: 15.5 | AP37: 0.17 | AR37: 15.5 | AS37: 6100 | AT37: 0.158 | AV37: 15.5 | AW37: 5200 | AX37: 15.5 | AY37: 0.15 | BA37: 15.5 | BB37: =interpolate_look_up(BA37,BC:BC,BD:BD) -> 2050 | BI37: 15.5 | BJ37: 2350
C38: 16 | D38: 6800 | E38: =C38 -> 16 | F38: 0.193 | H38: 16 | I38: 5940 | J38: 16 | K38: 0.166 | M38: 16 | N38: 5820 | O38: 16 | P38: 0.162 | R38: 16 | S38: 5270 | T38: 16 | U38: 0.143 | W38: 16 | X38: 6793 | Y38: 16 | Z38: 0.165 | AC38: 16 | AD38: 6070 | AE38: 16 | AF38: 0.146 | AH38: 16 | AI38: 5670 | AJ38: 16 | AK38: 0.135 | AM38: 16 | AN38: 7200 | AO38: 16 | AP38: 0.155 | AR38: 16 | AS38: 6100 | AT38: 0.143 | AV38: 16 | AW38: 5200 | AX38: 16 | AY38: 0.137 | BA38: 16 | BB38: =interpolate_look_up(BA38,BC:BC,BD:BD) -> 2050 | BI38: 16 | BJ38: 2350
C39: 16.5 | D39: 6800 | E39: =C39 -> 16.5 | F39: 0.176 | H39: 16.5 | I39: 5940 | J39: 16.5 | K39: 0.151 | M39: 16.5 | N39: 5820 | O39: 16.5 | P39: 0.148 | R39: 16.5 | S39: 5270 | T39: 16.5 | U39: 0.131 | W39: 16.5 | X39: 6752 | Y39: 16.5 | Z39: 0.15 | AC39: 16.5 | AD39: 6070 | AE39: 16.5 | AF39: 0.133 | AH39: 16.5 | AI39: 5670 | AJ39: 16.5 | AK39: 0.123 | AM39: 16.5 | AN39: 7200 | AO39: 16.5 | AP39: 0.141 | AR39: 16.5 | AS39: 5887 | AT39: 0.13 | AV39: 16.5 | AW39: 5020 | AX39: 16.5 | AY39: 0.124 | BA39: 16.5 | BB39: =interpolate_look_up(BA39,BC:BC,BD:BD) -> 2050 | BI39: 16.5 | BJ39: 2350
C40: 17 | D40: 6800 | E40: =C40 -> 17 | F40: 0.161 | H40: 17 | I40: 5940 | J40: 17 | K40: 0.139 | M40: 17 | N40: 5820 | O40: 17 | P40: 0.136 | R40: 17 | S40: 5270 | T40: 17 | U40: 0.122 | W40: 17 | X40: 6705 | Y40: 17 | Z40: 0.136 | AC40: 17 | AD40: 6070 | AE40: 17 | AF40: 0.12 | AH40: 17 | AI40: 5670 | AJ40: 17 | AK40: 0.111 | AM40: 17 | AN40: 7200 | AO40: 17 | AP40: 0.129 | AR40: 17 | AS40: 5674 | AT40: 0.119 | AV40: 17 | AW40: 4839 | AX40: 17 | AY40: 0.113 | BA40: 17 | BB40: =interpolate_look_up(BA40,BC:BC,BD:BD) -> 2050 | BI40: 17 | BJ40: 2350
C41: 17.5 | D41: 6800 | E41: =C41 -> 17.5 | F41: 0.149 | H41: 17.5 | I41: 5940 | J41: 17.5 | K41: 0.128 | M41: 17.5 | N41: 5820 | O41: 17.5 | P41: 0.125 | R41: 17.5 | S41: 5270 | T41: 17.5 | U41: 0.113 | W41: 17.5 | X41: 6589 | Y41: 17.5 | Z41: 0.124 | AC41: 17.5 | AD41: 6070 | AE41: 17.5 | AF41: 0.11 | AH41: 17.5 | AI41: 5670 | AJ41: 17.5 | AK41: 0.101 | AM41: 17.5 | AN41: 7194 | AO41: 17.5 | AP41: 0.119 | AR41: 17.5 | AS41: 5461 | AT41: 0.109 | AV41: 17.5 | AW41: 4659 | AX41: 17.5 | AY41: 0.104 | BA41: 17.5 | BB41: =interpolate_look_up(BA41,BC:BC,BD:BD) -> 2050 | BI41: 17.5 | BJ41: 2350
C42: 18 | D42: 6800 | E42: =C42 -> 18 | F42: 0.138 | H42: 18 | I42: 5940 | J42: 18 | K42: 0.119 | M42: 18 | N42: 5820 | O42: 18 | P42: 0.117 | R42: 18 | S42: 5270 | T42: 18 | U42: 0.105 | W42: 18 | X42: 6453 | Y42: 18 | Z42: 0.113 | AC42: 18 | AD42: 6070 | AE42: 18 | AF42: 0.1 | AH42: 18 | AI42: 5670 | AJ42: 18 | AK42: 0.093 | AM42: 18 | AN42: 7124 | AO42: 18 | AP42: 0.108 | AR42: 18 | AS42: 5248 | AT42: 0.1 | AV42: 18 | AW42: 4479 | AX42: 18 | AY42: 0.096 | BA42: 18 | BB42: =interpolate_look_up(BA42,BC:BC,BD:BD) -> 2050 | BI42: 18 | BJ42: 2350
C43: 18.5 | D43: 6800 | E43: =C43 -> 18.5 | F43: 0.129 | H43: 18.5 | I43: 5940 | J43: 18.5 | K43: 0.112 | M43: 18.5 | N43: 5820 | O43: 18.5 | P43: 0.109 | R43: 18.5 | S43: 5270 | T43: 18.5 | U43: 0.099 | W43: 18.5 | X43: 6256 | Y43: 18.5 | Z43: 0.103 | AC43: 18.5 | AD43: 6070 | AE43: 18.5 | AF43: 0.091 | AH43: 18.5 | AI43: 5670 | AJ43: 18.5 | AK43: 0.084 | AM43: 18.5 | AN43: 6959 | AO43: 18.5 | AP43: 0.098 | AR43: 18.5 | AS43: 5035 | AT43: 0.092 | AV43: 18.5 | AW43: 4298 | AX43: 18.5 | AY43: 0.088 | BA43: 18.5 | BB43: =interpolate_look_up(BA43,BC:BC,BD:BD) -> 2050 | BI43: 18.5 | BJ43: 2350
C44: 19 | D44: 6800 | E44: =C44 -> 19 | F44: 0.122 | H44: 19 | I44: 5940 | J44: 19 | K44: 0.105 | M44: 19 | N44: 5820 | O44: 19 | P44: 0.103 | R44: 19 | S44: 5270 | T44: 19 | U44: 0.093 | W44: 19 | X44: 6045 | Y44: 19 | Z44: 0.093 | AC44: 19 | AD44: 6017 | AE44: 19 | AF44: 0.082 | AH44: 19 | AI44: 5670 | AJ44: 19 | AK44: 0.076 | AM44: 19 | AN44: 6789 | AO44: 19 | AP44: 0.088 | AR44: 19 | AS44: 4822 | AT44: 0.085 | AV44: 19 | AW44: 4118 | AX44: 19 | AY44: 0.081 | BA44: 19 | BB44: =interpolate_look_up(BA44,BC:BC,BD:BD) -> 2050 | BI44: 19 | BJ44: 2350
C45: 19.5 | D45: 6800 | E45: =C45 -> 19.5 | F45: 0.115 | H45: 19.5 | I45: 5940 | J45: 19.5 | K45: 0.1 | M45: 19.5 | N45: 5820 | O45: 19.5 | P45: 0.098 | R45: 19.5 | S45: 5270 | T45: 19.5 | U45: 0.088 | W45: 19.5 | X45: 5855 | Y45: 19.5 | Z45: 0.086 | AC45: 19.5 | AD45: 5855 | AE45: 19.5 | AF45: 0.076 | AH45: 19.5 | AI45: 5665 | AJ45: 19.5 | AK45: 0.07 | AM45: 19.5 | AN45: 6630 | AO45: 19.5 | AP45: 0.08 | AR45: 19.5 | AS45: 4609 | AT45: 0.078 | AV45: 19.5 | AW45: 3938 | AX45: 19.5 | AY45: 0.075 | BA45: 19.5 | BB45: =interpolate_look_up(BA45,BC:BC,BD:BD) -> 2050 | BI45: 19.5 | BJ45: 2350
C46: 20 | D46: 6800 | E46: =C46 -> 20 | F46: 0.11 | H46: 20 | I46: 5940 | J46: 20 | K46: 0.095 | M46: 20 | N46: 5820 | O46: 20 | P46: 0.093 | R46: 20 | S46: 5270 | T46: 20 | U46: 0.084 | W46: 20 | X46: 5644 | Y46: 20 | Z46: 0.079 | AC46: 20 | AD46: 5644 | AE46: 20 | AF46: 0.07 | AH46: 20 | AI46: 5644 | AJ46: 20 | AK46: 0.065 | AM46: 20 | AN46: 6472 | AO46: 20 | AP46: 0.073 | AR46: 20 | AS46: 4396 | AT46: 0.072 | AV46: 20 | AW46: 3757 | AX46: 20 | AY46: 0.07 | BA46: 20 | BB46: =interpolate_look_up(BA46,BC:BC,BD:BD) -> 2050 | BI46: 20 | BJ46: 2350
C47: 20.5 | D47: 6603 | E47: =C47 -> 20.5 | F47: 0.099 | R47: 20.5 | S47: 5270 | T47: 20.5 | U47: 0.076 | AM47: 20.5 | AN47: 6262 | AO47: 20.5 | AP47: 0.066 | AR47: 20.5 | AS47: 4183 | AT47: 0.065 | AV47: 20.5 | AW47: 3577 | AX47: 20.5 | AY47: 0.064 | BA47: 20.5 | BB47: =interpolate_look_up(BA47,BC:BC,BD:BD) -> 2050 | BI47: 20.5 | BJ47: 2350
C48: 21 | D48: 6331 | E48: =C48 -> 21 | F48: 0.089 | R48: 21 | S48: 5270 | T48: 21 | U48: 0.068 | AM48: 21 | AN48: 5946 | AO48: 21 | AP48: 0.058 | AR48: 21 | AS48: 3970 | AT48: 0.058 | AV48: 21 | AW48: 3397 | AX48: 21 | AY48: 0.058 | BA48: 21 | BB48: =interpolate_look_up(BA48,BC:BC,BD:BD) -> 2050 | BI48: 21 | BJ48: 2350
C49: 21.5 | D49: 6059 | E49: =C49 -> 21.5 | F49: 0.08 | R49: 21.5 | S49: 5270 | T49: 21.5 | U49: 0.061 | AM49: 21.5 | AN49: 5538 | AO49: 21.5 | AP49: 0.052 | AR49: 21.5 | AS49: 3757 | AT49: 0.051 | AV49: 21.5 | AW49: 3216 | AX49: 21.5 | AY49: 0.051 | BA49: 21.5 | BB49: =interpolate_look_up(BA49,BC:BC,BD:BD) -> 2050 | BI49: 21.5 | BJ49: 2350
C50: 22 | D50: 5794 | E50: =C50 -> 22 | F50: 0.072 | R50: 22 | S50: 5270 | T50: 22 | U50: 0.055 | AM50: 22 | AN50: 5069 | AO50: 22 | AP50: 0.045 | AR50: 22 | AS50: 3544 | AT50: 0.044 | AV50: 22 | AW50: 3036 | AX50: 22 | AY50: 0.044 | BA50: 22 | BB50: =interpolate_look_up(BA50,BC:BC,BD:BD) -> 2050 | BI50: 22 | BJ50: 2350
C51: 22.5 | D51: 5528 | E51: =C51 -> 22.5 | F51: 0.064 | R51: 22.5 | S51: 5270 | T51: 22.5 | U51: 0.049 | AM51: 22.5 | AN51: 4597 | AO51: 22.5 | AP51: 0.039 | AR51: 22.5 | AS51: 3331 | AT51: 0.038 | AV51: 22.5 | AW51: 2856 | AX51: 22.5 | AY51: 0.038 | BA51: 22.5 | BB51: =interpolate_look_up(BA51,BC:BC,BD:BD) -> 2050 | BI51: 22.5 | BJ51: 2350
C52: 23 | D52: 5270 | E52: =C52 -> 23 | F52: 0.058 | R52: 23 | S52: 5270 | T52: 23 | U52: 0.044 | AM52: 23 | AN52: 4121 | AO52: 23 | AP52: 0.033 | AR52: 23 | AS52: 3118 | AT52: 0.033 | AV52: 23 | AW52: 2675 | AX52: 23 | AY52: 0.033 | BA52: 23 | BB52: =interpolate_look_up(BA52,BC:BC,BD:BD) -> 2050 | BI52: 23 | BJ52: 2350
C53: 23.5 | D53: 5012 | E53: =C53 -> 23.5 | F53: 0.052 | R53: 23.5 | S53: 5012 | T53: 23.5 | U53: 0.039 | AM53: 23.5 | AN53: 3636 | AO53: 23.5 | AP53: 0.028 | AR53: 23.5 | AS53: 2905 | AT53: 0.028 | AV53: 23.5 | AW53: 2495 | AX53: 23.5 | AY53: 0.028 | BA53: 23.5 | BB53: =interpolate_look_up(BA53,BC:BC,BD:BD) -> 2050 | BI53: 23.5 | BJ53: 2346
C54: 24 | D54: 4760 | E54: =C54 -> 24 | F54: 0.046 | R54: 24 | S54: 4760 | T54: 24 | U54: 0.035 | AM54: 24 | AN54: 3169 | AO54: 24 | AP54: 0.024 | AR54: 24 | AS54: 2692 | AT54: 0.024 | AV54: 24 | AW54: 2315 | AX54: 24 | AY54: 0.024 | BA54: 24 | BB54: =interpolate_look_up(BA54,BC:BC,BD:BD) -> 2050 | BI54: 24 | BJ54: 2339
C55: 24.5 | D55: 4508 | E55: =C55 -> 24.5 | F55: 0.042 | R55: 24.5 | S55: 4508 | T55: 24.5 | U55: 0.032 | AM55: 24.5 | AN55: 2718 | AO55: 24.5 | AP55: 0.02 | AR55: 24.5 | AS55: 2479 | AT55: 0.02 | AV55: 24.5 | AW55: 2134 | AX55: 24.5 | AY55: 0.02 | BA55: 24.5 | BB55: =interpolate_look_up(BA55,BC:BC,BD:BD) -> 2050 | BI55: 24.5 | BJ55: 2350
C56: 25 | D56: 4264 | E56: =C56 -> 25 | F56: 0.038 | R56: 25 | S56: 4264 | T56: 25 | U56: 0.029 | AM56: 25 | AN56: 2328 | AO56: 25 | AP56: 0.017 | AR56: 25 | AS56: 2266 | AT56: 0.017 | AV56: 25 | AW56: 1954 | AX56: 25 | AY56: 0.017 | BA56: 25 | BB56: =interpolate_look_up(BA56,BC:BC,BD:BD) -> 2050

Sheet Nordex 6.8 Mode 1
J2: 13.4.1 Nordex N163/6.X (6.8 MW) Betriebsmodus Mode 1
B5: Windgeschwindigkeit v (m/s) | C5: Leistung P (kW) | D5: Schubbeiwert Ct
B6: 3 | C6: 45 | D6: 0.892 | F6: 3 | G6: 45 | H6: 0.892
B7: 3.5 | C7: 150 | D7: 0.866 | F7: 3.5 | G7: 150 | H7: 0.866
B8: 4 | C8: 291 | D8: 0.845 | F8: 4 | G8: 291 | H8: 0.845
B9: 4.5 | C9: 465 | D9: 0.83 | F9: 4.5 | G9: 465 | H9: 0.83
B10: 5 | C10: 674 | D10: 0.82 | F10: 5 | G10: 674 | H10: 0.82
B11: 5.5 | C11: 921 | D11: 0.814 | F11: 5.5 | G11: 921 | H11: 0.814
B12: 6 | C12: 1214 | D12: 0.809 | F12: 6 | G12: 1214 | H12: 0.809
B13: 6.5 | C13: 1559 | D13: 0.806 | F13: 6.5 | G13: 1559 | H13: 0.806
B14: 7 | C14: 1960 | D14: 0.806 | F14: 7 | G14: 1960 | H14: 0.806
B15: 7.5 | C15: 2420 | D15: 0.801 | F15: 7.5 | G15: 2420 | H15: 0.801
B16: 8 | C16: 2944 | D16: 0.784 | F16: 8 | G16: 2944 | H16: 0.784
B17: 8.5 | C17: 3520 | D17: 0.758 | F17: 8.5 | G17: 3520 | H17: 0.758
B18: 9 | C18: 4115 | D18: 0.725 | F18: 9 | G18: 4115 | H18: 0.725
B19: 9.5 | C19: 4701 | D19: 0.687 | F19: 9.5 | G19: 4701 | H19: 0.687
B20: 10 | C20: 5267 | D20: 0.642 | F20: 10 | G20: 5267 | H20: 0.642
B21: 10.5 | C21: 5771 | D21: 0.595 | F21: 10.5 | G21: 5771 | H21: 0.595
B22: 11 | C22: 6148 | D22: 0.546 | F22: 11 | G22: 6148 | H22: 0.546
B23: 11.5 | C23: 6421 | D23: 0.498 | F23: 11.5 | G23: 6421 | H23: 0.498
B24: 12 | C24: 6611 | D24: 0.45 | F24: 12 | G24: 6611 | H24: 0.45
B25: 12.5 | C25: 6731 | D25: 0.405 | F25: 12.5 | G25: 6731 | H25: 0.405
B26: 13 | C26: 6791 | D26: 0.364 | F26: 13 | G26: 6791 | H26: 0.364
B27: 13.5 | C27: 6800 | D27: 0.327 | F27: 13.5 | G27: 6800 | H27: 0.327
B28: 14 | C28: 6800 | D28: 0.295 | F28: 14 | G28: 6800 | H28: 0.295
B29: 14.5 | C29: 6800 | D29: 0.265 | F29: 14.5 | G29: 6800 | H29: 0.265
B30: 15 | C30: 6800 | D30: 0.239 | F30: 15 | G30: 6800 | H30: 0.239
B31: 15.5 | C31: 6800 | D31: 0.215 | F31: 15.5 | G31: 6800 | H31: 0.215
B32: 16 | C32: 6800 | D32: 0.193 | F32: 16 | G32: 6800 | H32: 0.193
B33: 16.5 | C33: 6800 | D33: 0.176 | F33: 16.5 | G33: 6800 | H33: 0.176
B34: 17 | C34: 6800 | D34: 0.161 | F34: 17 | G34: 6800 | H34: 0.161
B35: 17.5 | C35: 6800 | D35: 0.149 | F35: 17.5 | G35: 6800 | H35: 0.149
B36: 18 | C36: 6800 | D36: 0.138 | F36: 18 | G36: 6800 | H36: 0.138
B37: 18.5 | C37: 6800 | D37: 0.129 | F37: 18.5 | G37: 6800 | H37: 0.129
B38: 19 | C38: 6800 | D38: 0.122 | F38: 19 | G38: 6800 | H38: 0.122
B39: 19.5 | C39: 6800 | D39: 0.115 | F39: 19.5 | G39: 6800 | H39: 0.115
B40: 20 | C40: 6800 | D40: 0.11 | F40: 20 | G40: 6800 | H40: 0.11
B41: 20.5 | C41: 6603 | D41: 0.099 | F41: 20.5 | G41: 6603 | H41: 0.099
B42: 21 | C42: 6331 | D42: 0.089 | F42: 21 | G42: 6331 | H42: 0.089
B43: 21.5 | C43: 6059 | D43: 0.08 | F43: 21.5 | G43: 6059 | H43: 0.08
B44: 22 | C44: 5794 | D44: 0.072 | F44: 22 | G44: 5794 | H44: 0.072
B45: 22.5 | C45: 5528 | D45: 0.064 | F45: 22.5 | G45: 5528 | H45: 0.064
B46: 23 | C46: 5270 | D46: 0.058 | F46: 23 | G46: 5270 | H46: 0.058
B47: 23.5 | C47: 5012 | D47: 0.052 | F47: 23.5 | G47: 5012 | H47: 0.052
B48: 24 | C48: 4760 | D48: 0.046 | F48: 24 | G48: 4760 | H48: 0.046
B49: 24.5 | C49: 4508 | D49: 0.042 | F49: 24.5 | G49: 4508 | H49: 0.042
B50: 25 | C50: 4264 | D50: 0.038 | F50: 25 | G50: 4264 | H50: 0.038
B51: 25.5 | C51: 4019 | D51: 0.035 | F51: 25.5 | G51: 4019 | H51: 0.035
B52: 26 | C52: 3774 | D52: 0.032 | F52: 26 | G52: 3774 | H52: 0.032

Sheet Mode 7
B3: Wind Speed v (m/s) | C3: Calculated Power P (kW) | D3: Thrust Coefficient Ct | E3: Notes / Status
B4: 3 | C4: 45 | D4: 0.892 | E4: Available
B5: 3.5 | C5: 150 | D5: 0.866 | E5: Available
B6: 4 | C6: 291 | D6: 0.845 | E6: Available
B7: 4.5 | C7: 465 | D7: 0.83 | E7: Available
B8: 5 | C8: 674 | D8: 0.82 | E8: Available
B9: 5.5 | C9: 921 | D9: 0.814 | E9: Available
B10: 6 | C10: 1214 | D10: 0.809 | E10: Available
B11: 6.5 | C11: 1559 | D11: 0.804 | E11: Available
B12: 7 | C12: 1960 | D12: 0.785 | E12: Available
B13: 7.5 | C13: 2406 | D13: 0.753 | E13: Available
B14: 8 | C14: 2865 | D14: 0.715 | E14: Available
B15: 8.5 | C15: 3313 | D15: 0.671 | E15: Available
B16: 9 | C16: 3736 | D16: 0.625 | E16: Available
B17: 9.5 | C17: 4124 | D17: 0.579 | E17: Available
B18: 10 | C18: 4483 | D18: 0.532 | E18: Available
B19: 10.5 | C19: 4824 | D19: 0.484 | E19: Available
B20: 11 | C20: 5140 | D20: 0.438 | E20: Available
B21: 11.5 | C21: 5398 | D21: 0.395 | E21: Available
B22: 12 | C22: 5595 | D22: 0.357 | E22: Available
B23: 12.5 | C23: 5741 | D23: 0.324 | E23: Available
B24: 13 | C24: 5844 | D24: 0.293 | E24: Available
B25: 13.5 | C25: 5907 | D25: 0.266 | E25: Available
B26: 14 | C26: 5935 | D26: 0.242 | E26: Available
B27: 14.5 | C27: 5940 | D27: 0.22 | E27: Available
B28: 15 | C28: 5940 | D28: 0.2 | E28: Rated Power Reached
B29: 15.5 | C29: 5940 | D29: 0.182 | E29: Rated Power Reached
B30: 16 | C30: 5940 | D30: 0.166 | E30: Rated Power Reached
B31: 16.5 | C31: 5940 | D31: 0.151 | E31: Rated Power Reached
B32: 17 | C32: 5940 | D32: 0.139 | E32: Rated Power Reached
B33: 17.5 | C33: 5940 | D33: 0.128 | E33: Rated Power Reached
B34: 18 | C34: 5940 | D34: 0.119 | E34: Rated Power Reached
B35: 18.5 | C35: 5940 | D35: 0.112 | E35: Rated Power Reached
B36: 19 | C36: 5940 | D36: 0.105 | E36: Rated Power Reached
B37: 19.5 | C37: 5940 | D37: 0.1 | E37: Rated Power Reached
B38: 20 | C38: 5940 | D38: 0.095 | E38: Rated Power Reached
B39: Reference:

Sheet Mode 8
B3: Wind Speed v (m/s) for Power | C3: Power P (kW) | D3: Wind Speed v (m/s) for Ct | E3: Thrust Coefficient Ct
B4: 3 | C4: 45 | D4: 3 | E4: 0.892
B5: 3.5 | C5: 150 | D5: 3.5 | E5: 0.866
B6: 4 | C6: 291 | D6: 4 | E6: 0.845
B7: 4.5 | C7: 465 | D7: 4.5 | E7: 0.83
B8: 5 | C8: 674 | D8: 5 | E8: 0.82
B9: 5.5 | C9: 921 | D9: 5.5 | E9: 0.814
B10: 6 | C10: 1214 | D10: 6 | E10: 0.809
B11: 6.5 | C11: 1559 | D11: 6.5 | E11: 0.8
B12: 7 | C12: 1959 | D12: 7 | E12: 0.777
B13: 7.5 | C13: 2396 | D13: 7.5 | E13: 0.742
B14: 8 | C14: 2837 | D14: 8 | E14: 0.701
B15: 8.5 | C15: 3264 | D15: 8.5 | E15: 0.656
B16: 9 | C16: 3662 | D16: 9 | E16: 0.609
B17: 9.5 | C17: 4025 | D17: 9.5 | E17: 0.562
B18: 10 | C18: 4364 | D18: 10 | E18: 0.515
B19: 10.5 | C19: 4688 | D19: 10.5 | E19: 0.468
B20: 11 | C20: 4996 | D20: 11 | E20: 0.423
B21: 11.5 | C21: 5254 | D21: 11.5 | E21: 0.382
B22: 12 | C22: 5453 | D22: 12 | E22: 0.346
B23: 12.5 | C23: 5603 | D23: 12.5 | E23: 0.313
B24: 13 | C24: 5710 | D24: 13 | E24: 0.284
B25: 13.5 | C25: 5779 | D25: 13.5 | E25: 0.258
B26: 14 | C26: 5813 | D26: 14 | E26: 0.235
B27: 14.5 | C27: 5820 | D27: 14.5 | E27: 0.214
B28: 15 | C28: 5820 | D28: 15 | E28: 0.195
B29: 15.5 | C29: 5820 | D29: 15.5 | E29: 0.178
B30: 16 | C30: 5820 | D30: 16 | E30: 0.162
B31: 16.5 | C31: 5820 | D31: 16.5 | E31: 0.148
B32: 17 | C32: 5820 | D32: 17 | E32: 0.136
B33: 17.5 | C33: 5820 | D33: 17.5 | E33: 0.125
B34: 18 | C34: 5820 | D34: 18 | E34: 0.117
B35: 18.5 | C35: 5820 | D35: 18.5 | E35: 0.109
B36: 19 | C36: 5820 | D36: 19 | E36: 0.103
B37: 19.5 | C37: 5820 | D37: 19.5 | E37: 0.098
B38: 20 | C38: 5820 | D38: 20 | E38: 0.093

Sheet Mode 9
B3: Wind Speed v (m/s) | C3: Power P (kW) | D3: Wind Speed v (m/s) | E3: Thrust Coefficient Ct
B4: 3 | C4: 45 | D4: 3 | E4: 0.892
B5: 3.5 | C5: 150 | D5: 3.5 | E5: 0.866
B6: 4 | C6: 291 | D6: 4 | E6: 0.845
B7: 4.5 | C7: 465 | D7: 4.5 | E7: 0.83
B8: 5 | C8: 674 | D8: 5 | E8: 0.82
B9: 5.5 | C9: 921 | D9: 5.5 | E9: 0.814
B10: 6 | C10: 1215 | D10: 6 | E10: 0.799
B11: 6.5 | C11: 1555 | D11: 6.5 | E11: 0.767
B12: 7 | C12: 1919 | D12: 7 | E12: 0.724
B13: 7.5 | C13: 2277 | D13: 7.5 | E13: 0.676
B14: 8 | C14: 2614 | D14: 8 | E14: 0.624
B15: 8.5 | C15: 2921 | D15: 8.5 | E15: 0.572
B16: 9 | C16: 3203 | D16: 9 | E16: 0.52
B17: 9.5 | C17: 3471 | D17: 9.5 | E17: 0.47
B18: 10 | C18: 3731 | D18: 10 | E18: 0.423
B19: 10.5 | C19: 3980 | D19: 10.5 | E19: 0.383
B20: 11 | C20: 4217 | D20: 11 | E20: 0.348
B21: 11.5 | C21: 4445 | D21: 11.5 | E21: 0.317
B22: 12 | C22: 4663 | D22: 12 | E22: 0.289
B23: 12.5 | C23: 4845 | D23: 12.5 | E23: 0.263
B24: 13 | C24: 4985 | D24: 13 | E24: 0.24
B25: 13.5 | C25: 5091 | D25: 13.5 | E25: 0.22
B26: 14 | C26: 5169 | D26: 14 | E26: 0.201
B27: 14.5 | C27: 5225 | D27: 14.5 | E27: 0.184
B28: 15 | C28: 5258 | D28: 15 | E28: 0.169
B29: 15.5 | C29: 5270 | D29: 15.5 | E29: 0.155
B30: 16 | C30: 5270 | D30: 16 | E30: 0.143
B31: 16.5 | C31: 5270 | D31: 16.5 | E31: 0.131
B32: 17 | C32: 5270 | D32: 17 | E32: 0.122
B33: 17.5 | C33: 5270 | D33: 17.5 | E33: 0.113
B34: 18 | C34: 5270 | D34: 18 | E34: 0.105
B35: 18.5 | C35: 5270 | D35: 18.5 | E35: 0.099
B36: 19 | C36: 5270 | D36: 19 | E36: 0.093
B37: 19.5 | C37: 5270 | D37: 19.5 | E37: 0.088
B38: 20 | C38: 5270 | D38: 20 | E38: 0.084
B39: 20.5 | C39: 5270 | D39: 20.5 | E39: 0.076
B40: 21 | C40: 5270 | D40: 21 | E40: 0.068
B41: 21.5 | C41: 5270 | D41: 21.5 | E41: 0.061
B42: 22 | C42: 5270 | D42: 22 | E42: 0.055
B43: 22.5 | C43: 5270 | D43: 22.5 | E43: 0.049
B44: 23 | C44: 5270 | D44: 23 | E44: 0.044
B45: 23.5 | C45: 5012 | D45: 23.5 | E45: 0.039
B46: 24 | C46: 4760 | D46: 24 | E46: 0.035
B47: 24.5 | C47: 4508 | D47: 24.5 | E47: 0.032
B48: 25 | C48: 4264 | D48: 25 | E48: 0.029
B49: 25.5 | C49: 4019 | D49: 25.5 | E49: 0.026
B50: 26 | C50: 3774 | D50: 26 | E50: 0.025

Sheet Mode 0
B2: Nordex N163/6.X Wind Turbine Data
B4: Wind Speed v (m/s) | C4: Power P (kW) | D4: Wind Speed v (m/s) | E4: Thrust Coefficient Ct
B5: 3 | C5: 74 | D5: 3 | E5: 0.874
B6: 3.5 | C6: 195 | D6: 3.5 | E6: 0.867
B7: 4 | C7: 360 | D7: 4 | E7: 0.852
B8: 4.5 | C8: 567 | D8: 4.5 | E8: 0.839
B9: 5 | C9: 815 | D9: 5 | E9: 0.83
B10: 5.5 | C10: 1110 | D10: 5.5 | E10: 0.824
B11: 6 | C11: 1458 | D11: 6 | E11: 0.82
B12: 6.5 | C12: 1868 | D12: 6.5 | E12: 0.817
B13: 7 | C13: 2344 | D13: 7 | E13: 0.816
B14: 7.5 | C14: 2891 | D14: 7.5 | E14: 0.804
B15: 8 | C15: 3509 | D15: 8 | E15: 0.779
B16: 8.5 | C16: 4163 | D16: 8.5 | E16: 0.747
B17: 9 | C17: 4815 | D17: 9 | E17: 0.705
B18: 9.5 | C18: 5437 | D18: 9.5 | E18: 0.656
B19: 10 | C19: 5940 | D19: 10 | E19: 0.605
B20: 10.5 | C20: 6304 | D20: 10.5 | E20: 0.552
B21: 11 | C21: 6549 | D21: 11 | E21: 0.5
B22: 11.5 | C22: 6703 | D22: 11.5 | E22: 0.45
B23: 12 | C23: 6780 | D23: 12 | E23: 0.401
B24: 12.5 | C24: 6800 | D24: 12.5 | E24: 0.358
B25: 13 | C25: 6800 | D25: 13 | E25: 0.319
B26: 13.5 | C26: 6800 | D26: 13.5 | E26: 0.284
B27: 14 | C27: 6800 | D27: 14 | E27: 0.253
B28: 14.5 | C28: 6800 | D28: 14.5 | E28: 0.226
B29: 15 | C29: 6800 | D29: 15 | E29: 0.202
B30: 15.5 | C30: 6800 | D30: 15.5 | E30: 0.182
B31: 16 | C31: 6793 | D31: 16 | E31: 0.165
B32: 16.5 | C32: 6752 | D32: 16.5 | E32: 0.15
B33: 17 | C33: 6705 | D33: 17 | E33: 0.136
B34: 17.5 | C34: 6589 | D34: 17.5 | E34: 0.124
B35: 18 | C35: 6453 | D35: 18 | E35: 0.113
B36: 18.5 | C36: 6256 | D36: 18.5 | E36: 0.103
B37: 19 | C37: 6045 | D37: 19 | E37: 0.093
B38: 19.5 | C38: 5855 | D38: 19.5 | E38: 0.086
B39: 20 | C39: 5644 | D39: 20 | E39: 0.079

Sheet Mode 3
C3: Wind Speed v (m/s) | D3: Power P (kW) | E3: Wind Speed v (m/s) | F3: Thrust Coefficient Ct
C4: 3 | D4: 74 | E4: 3 | F4: 0.874
C5: 3.5 | D5: 195 | E5: 3.5 | F5: 0.867
C6: 4 | D6: 360 | E6: 4 | F6: 0.852
C7: 4.5 | D7: 567 | E7: 4.5 | F7: 0.839
C8: 5 | D8: 815 | E8: 5 | F8: 0.83
C9: 5.5 | D9: 1110 | E9: 5.5 | F9: 0.824
C10: 6 | D10: 1458 | E10: 6 | F10: 0.82
C11: 6.5 | D11: 1868 | E11: 6.5 | F11: 0.817
C12: 7 | D12: 2344 | E12: 7 | F12: 0.812
C13: 7.5 | D13: 2891 | E13: 7.5 | F13: 0.793
C14: 8 | D14: 3494 | E14: 8 | F14: 0.764
C15: 8.5 | D15: 4112 | E15: 8.5 | F15: 0.724
C16: 9 | D16: 4719 | E16: 9 | F16: 0.675
C17: 9.5 | D17: 5224 | E17: 9.5 | F17: 0.621
C18: 10 | D18: 5590 | E18: 10 | F18: 0.567
C19: 10.5 | D19: 5836 | E19: 10.5 | F19: 0.512
C20: 11 | D20: 5987 | E20: 11 | F20: 0.459
C21: 11.5 | D21: 6056 | E21: 11.5 | F21: 0.408
C22: 12 | D22: 6070 | E22: 12 | F22: 0.362
C23: 12.5 | D23: 6070 | E23: 12.5 | F23: 0.321
C24: 13 | D24: 6070 | E24: 13 | F24: 0.284
C25: 13.5 | D25: 6070 | E25: 13.5 | F25: 0.251
C26: 14 | D26: 6070 | E26: 14 | F26: 0.223
C27: 14.5 | D27: 6070 | E27: 14.5 | F27: 0.199
C28: 15 | D28: 6070 | E28: 15 | F28: 0.179
C29: 15.5 | D29: 6070 | E29: 15.5 | F29: 0.161
C30: 16 | D30: 6070 | E30: 16 | F30: 0.146
C31: 16.5 | D31: 6070 | E31: 16.5 | F31: 0.133
C32: 17 | D32: 6070 | E32: 17 | F32: 0.12
C33: 17.5 | D33: 6070 | E33: 17.5 | F33: 0.11
C34: 18 | D34: 6070 | E34: 18 | F34: 0.1
C35: 18.5 | D35: 6070 | E35: 18.5 | F35: 0.091
C36: 19 | D36: 6017 | E36: 19 | F36: 0.082
C37: 19.5 | D37: 5855 | E37: 19.5 | F37: 0.076
C38: 20 | D38: 5644 | E38: 20 | F38: 0.07

Sheet Mode 6
B3: Wind Speed v (m/s) | C3: Power P (kW) | D3: Wind Speed v (m/s) | E3: Thrust Coefficient Ct
B4: 3 | C4: 74 | D4: 3 | E4: 0.874
B5: 3.5 | C5: 195 | D5: 3.5 | E5: 0.867
B6: 4 | C6: 360 | D6: 4 | E6: 0.852
B7: 4.5 | C7: 567 | D7: 4.5 | E7: 0.839
B8: 5 | C8: 815 | D8: 5 | E8: 0.83
B9: 5.5 | C9: 1110 | D9: 5.5 | E9: 0.824
B10: 6 | C10: 1459 | D10: 6 | E10: 0.82
B11: 6.5 | C11: 1868 | D11: 6.5 | E11: 0.814
B12: 7 | C12: 2344 | D12: 7 | E12: 0.793
B13: 7.5 | C13: 2873 | D13: 7.5 | E13: 0.762
B14: 8 | C14: 3416 | D14: 8 | E14: 0.723
B15: 8.5 | C15: 3949 | D15: 8.5 | E15: 0.678
B16: 9 | C16: 4453 | D16: 9 | E16: 0.627
B17: 9.5 | C17: 4886 | D17: 9.5 | E17: 0.573
B18: 10 | C18: 5202 | D18: 10 | E18: 0.518
B19: 10.5 | C19: 5424 | D19: 10.5 | E19: 0.464
B20: 11 | C20: 5566 | D20: 11 | E20: 0.413
B21: 11.5 | C21: 5643 | D21: 11.5 | E21: 0.367
B22: 12 | C22: 5670 | D22: 12 | E22: 0.327
B23: 12.5 | C23: 5670 | D23: 12.5 | E23: 0.291
B24: 13 | C24: 5670 | D24: 13 | E24: 0.259
B25: 13.5 | C25: 5670 | D25: 13.5 | E25: 0.231
B26: 14 | C26: 5670 | D26: 14 | E26: 0.206
B27: 14.5 | C27: 5670 | D27: 14.5 | E27: 0.184
B28: 15 | C28: 5670 | D28: 15 | E28: 0.165
B29: 15.5 | C29: 5670 | D29: 15.5 | E29: 0.149
B30: 16 | C30: 5670 | D30: 16 | E30: 0.135
B31: 16.5 | C31: 5670 | D31: 16.5 | E31: 0.123
B32: 17 | C32: 5670 | D32: 17 | E32: 0.111
B33: 17.5 | C33: 5670 | D33: 17.5 | E33: 0.101
B34: 18 | C34: 5670 | D34: 18 | E34: 0.093
B35: 18.5 | C35: 5670 | D35: 18.5 | E35: 0.084
B36: 19 | C36: 5670 | D36: 19 | E36: 0.076
B37: 19.5 | C37: 5665 | D37: 19.5 | E37: 0.07
B38: 20 | C38: 5644 | D38: 20 | E38: 0.065

Sheet Vestas PO7
B1: Vesta PO7
B3: Wind Speed v (m/s) | C3: Power P (kW) | D3: Wind Speed v (m/s) | E3: Thrust Coefficient Ct
B4: 3 | C4: 32 | D4: 3 | E4: 0.969
B5: 3.5 | C5: 129 | D5: 3.5 | E5: 0.885
B6: 4 | C6: 288 | D6: 4 | E6: 0.834
B7: 4.5 | C7: 481 | D7: 4.5 | E7: 0.818
B8: 5 | C8: 715 | D8: 5 | E8: 0.812
B9: 5.5 | C9: 999 | D9: 5.5 | E9: 0.815
B10: 6 | C10: 1340 | D10: 6 | E10: 0.814
B11: 6.5 | C11: 1739 | D11: 6.5 | E11: 0.81
B12: 7 | C12: 2203 | D12: 7 | E12: 0.805
B13: 7.5 | C13: 2729 | D13: 7.5 | E13: 0.797
B14: 8 | C14: 3324 | D14: 8 | E14: 0.788
B15: 8.5 | C15: 3986 | D15: 8.5 | E15: 0.777
B16: 9 | C16: 4685 | D16: 9 | E16: 0.75
B17: 9.5 | C17: 5314 | D17: 9.5 | E17: 0.69
B18: 10 | C18: 5904 | D18: 10 | E18: 0.628
B19: 10.5 | C19: 6441 | D19: 10.5 | E19: 0.571
B20: 11 | C20: 6854 | D20: 11 | E20: 0.513
B21: 11.5 | C21: 7078 | D21: 11.5 | E21: 0.451
B22: 12 | C22: 7160 | D22: 12 | E22: 0.392
B23: 12.5 | C23: 7195 | D23: 12.5 | E23: 0.341
B24: 13 | C24: 7200 | D24: 13 | E24: 0.299
B25: 13.5 | C25: 7200 | D25: 13.5 | E25: 0.264
B26: 14 | C26: 7200 | D26: 14 | E26: 0.235
B27: 14.5 | C27: 7200 | D27: 14.5 | E27: 0.21
B28: 15 | C28: 7200 | D28: 15 | E28: 0.188
B29: 15.5 | C29: 7200 | D29: 15.5 | E29: 0.17
B30: 16 | C30: 7200 | D30: 16 | E30: 0.155
B31: 16.5 | C31: 7200 | D31: 16.5 | E31: 0.141
B32: 17 | C32: 7200 | D32: 17 | E32: 0.129
B33: 17.5 | C33: 7194 | D33: 17.5 | E33: 0.119
B34: 18 | C34: 7124 | D34: 18 | E34: 0.108
B35: 18.5 | C35: 6959 | D35: 18.5 | E35: 0.098
B36: 19 | C36: 6789 | D36: 19 | E36: 0.088
B37: 19.5 | C37: 6630 | D37: 19.5 | E37: 0.08
B38: 20 | C38: 6472 | D38: 20 | E38: 0.073
B39: 20.5 | C39: 6262 | D39: 20.5 | E39: 0.066
B40: 21 | C40: 5946 | D40: 21 | E40: 0.058
B41: 21.5 | C41: 5538 | D41: 21.5 | E41: 0.052
B42: 22 | C42: 5069 | D42: 22 | E42: 0.045
B43: 22.5 | C43: 4597 | D43: 22.5 | E43: 0.039
B44: 23 | C44: 4121 | D44: 23 | E44: 0.033
B45: 23.5 | C45: 3636 | D45: 23.5 | E45: 0.028
B46: 24 | C46: 3169 | D46: 24 | E46: 0.024
B47: 24.5 | C47: 2718 | D47: 24.5 | E47: 0.02
B48: 25 | C48: 2328 | D48: 25 | E48: 0.017
B49: This table has 45 rows. The power values seem to increase to a maximum of 7200 kW and then decrease after v=17.00, which is typical for a power curve with cut-out. The thrust coefficients decrease with wind speed.
B51: I think this is a reasonable interpretation.
B53: So, I'll output this table.
B55: Wind Speed v (m/s) | C55: Power P (kW) | D55: Wind Speed v (m/s) | E55: Thrust Coefficient Ct
B56: 3 | C56: 323 | D56: 3 | E56: 0.969
B57: 3.5 | C57: 1293 | D57: 3.5 | E57: 0.885
B58: 4 | C58: 2884 | D58: 4 | E58: 0.834
B59: 4.5 | C59: 4814 | D59: 4.5 | E59: 0.818
B60: 5 | C60: 7155 | D60: 5 | E60: 0.812
B61: 5.5 | C61: 9995 | D61: 5.5 | E61: 0.815
B62: 6 | C62: 1340 | D62: 6 | E62: 0.814
B63: 6.5 | C63: 1739 | D63: 6.5 | E63: 0.81
B64: 7 | C64: 2203 | D64: 7 | E64: 0.805
B65: 7.5 | C65: 2729 | D65: 7.5 | E65: 0.797
B66: 8 | C66: 3324 | D66: 8 | E66: 0.788
B67: 8.5 | C67: 3986 | D67: 8.5 | E67: 0.777
B68: 9 | C68: 4685 | D68: 9 | E68: 0.75
B69: 9.5 | C69: 5314 | D69: 9.5 | E69: 0.69
B70: 10 | C70: 5904 | D70: 10 | E70: 0.628
B71: 10.5 | C71: 6441 | D71: 10.5 | E71: 0.571
B72: 11 | C72: 6854 | D72: 11 | E72: 0.513
B73: 11.5 | C73: 7078 | D73: 11.5 | E73: 0.451
B74: 12 | C74: 7160 | D74: 12 | E74: 0.392
B75: 12.5 | C75: 7195 | D75: 12.5 | E75: 0.341
B76: 13 | C76: 7200 | D76: 13 | E76: 0.299
B77: 13.5 | C77: 7200 | D77: 13.5 | E77: 0.264
B78: 14 | C78: 7200 | D78: 14 | E78: 0.235
B79: 14.5 | C79: 7200 | D79: 14.5 | E79: 0.21
B80: 15 | C80: 7200 | D80: 15 | E80: 0.188
B81: 15.5 | C81: 7200 | D81: 15.5 | E81: 0.17
B82: 16 | C82: 7200 | D82: 16 | E82: 0.155
B83: 16.5 | C83: 7200 | D83: 16.5 | E83: 0.141
B84: 17 | C84: 7200 | D84: 17 | E84: 0.129
B85: 17.5 | C85: 7194 | D85: 17.5 | E85: 0.119
B86: 18 | C86: 7124 | D86: 18 | E86: 0.108
B87: 18.5 | C87: 6959 | D87: 18.5 | E87: 0.098
B88: 19 | C88: 6789 | D88: 19 | E88: 0.088
B89: 19.5 | C89: 6630 | D89: 19.5 | E89: 0.08
B90: 20 | C90: 6472 | D90: 20 | E90: 0.073
B91: 20.5 | C91: 6262 | D91: 20.5 | E91: 0.066
B92: 21 | C92: 5946 | D92: 21 | E92: 0.058
B93: 21.5 | C93: 5538 | D93: 21.5 | E93: 0.052
B94: 22 | C94: 5069 | D94: 22 | E94: 0.045
B95: 22.5 | C95: 4597 | D95: 22.5 | E95: 0.039
B96: 23 | C96: 4121 | D96: 23 | E96: 0.033
B97: 23.5 | C97: 3636 | D97: 23.5 | E97: 0.028
B98: 24 | C98: 3169 | D98: 24 | E98: 0.024
B99: 24.5 | C99: 2718 | D99: 24.5 | E99: 0.02
B100: 25 | C100: 2328 | D100: 25 | E100: 0.017

Sheet Vestas 6.1 SO1
B3: Wind Speed (m/s) | C3: Power (kW) | D3: Thrust Coefficient (Ct)
B4: 3 | C4: 32 | D4: 0.969
B5: 3.5 | C5: 129 | D5: 0.885
B6: 4 | C6: 288 | D6: 0.831
B7: 4.5 | C7: 471 | D7: 0.817
B8: 5 | C8: 698 | D8: 0.812
B9: 5.5 | C9: 974 | D9: 0.814
B10: 6 | C10: 1307 | D10: 0.814
B11: 6.5 | C11: 1697 | D11: 0.811
B12: 7 | C12: 2150 | D12: 0.806
B13: 7.5 | C13: 2666 | D13: 0.799
B14: 8 | C14: 3251 | D14: 0.791
B15: 8.5 | C15: 3903 | D15: 0.774
B16: 9 | C16: 4570 | D16: 0.731
B17: 9.5 | C17: 5206 | D17: 0.675
B18: 10 | C18: 5774 | D18: 0.616
B19: 10.5 | C19: 6100 | D19: 0.55
B20: 11 | C20: 6100 | D20: 0.482
B21: 11.5 | C21: 6100 | D21: 0.416
B22: 12 | C22: 6100 | D22: 0.361
B23: 12.5 | C23: 6100 | D23: 0.314
B24: 13 | C24: 6100 | D24: 0.275
B25: 13.5 | C25: 6100 | D25: 0.243
B26: 14 | C26: 6100 | D26: 0.217
B27: 14.5 | C27: 6100 | D27: 0.194
B28: 15 | C28: 6100 | D28: 0.174
B29: 15.5 | C29: 6100 | D29: 0.158
B30: 16 | C30: 6100 | D30: 0.143
B31: 16.5 | C31: 5887 | D31: 0.13
B32: 17 | C32: 5674 | D32: 0.119
B33: 17.5 | C33: 5461 | D33: 0.109
B34: 18 | C34: 5248 | D34: 0.1
B35: 18.5 | C35: 5035 | D35: 0.092
B36: 19 | C36: 4822 | D36: 0.085
B37: 19.5 | C37: 4609 | D37: 0.078
B38: 20 | C38: 4396 | D38: 0.072
B39: 20.5 | C39: 4183 | D39: 0.065
B40: 21 | C40: 3970 | D40: 0.058
B41: 21.5 | C41: 3757 | D41: 0.051
B42: 22 | C42: 3544 | D42: 0.044
B43: 22.5 | C43: 3331 | D43: 0.038
B44: 23 | C44: 3118 | D44: 0.033
B45: 23.5 | C45: 2905 | D45: 0.028
B46: 24 | C46: 2692 | D46: 0.024
B47: 24.5 | C47: 2479 | D47: 0.02
B48: 25 | C48: 2266 | D48: 0.017
B50: I think this is a reasonable interpretation.
B52: So, I'll output this table.
B54: Wind Speed v (m/s) | C54: Power P (kW) | D54: Wind Speed v (m/s) | E54: Thrust Coefficient Ct
B55: 3 | C55: 323 | D55: 3 | E55: 0.969
B56: 3.5 | C56: 1293 | D56: 3.5 | E56: 0.885
B57: 4 | C57: 2884 | D57: 4 | E57: 0.834
B58: 4.5 | C58: 4814 | D58: 4.5 | E58: 0.818
B59: 5 | C59: 7155 | D59: 5 | E59: 0.812
B60: 5.5 | C60: 9995 | D60: 5.5 | E60: 0.815
B61: 6 | C61: 1340 | D61: 6 | E61: 0.814
B62: 6.5 | C62: 1739 | D62: 6.5 | E62: 0.81
B63: 7 | C63: 2203 | D63: 7 | E63: 0.805
B64: 7.5 | C64: 2729 | D64: 7.5 | E64: 0.797
B65: 8 | C65: 3324 | D65: 8 | E65: 0.788
B66: 8.5 | C66: 3986 | D66: 8.5 | E66: 0.777
B67: 9 | C67: 4685 | D67: 9 | E67: 0.75
B68: 9.5 | C68: 5314 | D68: 9.5 | E68: 0.69
B69: 10 | C69: 5904 | D69: 10 | E69: 0.628
B70: 10.5 | C70: 6441 | D70: 10.5 | E70: 0.571
B71: 11 | C71: 6854 | D71: 11 | E71: 0.513
B72: 11.5 | C72: 7078 | D72: 11.5 | E72: 0.451
B73: 12 | C73: 7160 | D73: 12 | E73: 0.392
B74: 12.5 | C74: 7195 | D74: 12.5 | E74: 0.341
B75: 13 | C75: 7200 | D75: 13 | E75: 0.299
B76: 13.5 | C76: 7200 | D76: 13.5 | E76: 0.264
B77: 14 | C77: 7200 | D77: 14 | E77: 0.235
B78: 14.5 | C78: 7200 | D78: 14.5 | E78: 0.21
B79: 15 | C79: 7200 | D79: 15 | E79: 0.188
B80: 15.5 | C80: 7200 | D80: 15.5 | E80: 0.17
B81: 16 | C81: 7200 | D81: 16 | E81: 0.155
B82: 16.5 | C82: 7200 | D82: 16.5 | E82: 0.141
B83: 17 | C83: 7200 | D83: 17 | E83: 0.129
B84: 17.5 | C84: 7194 | D84: 17.5 | E84: 0.119
B85: 18 | C85: 7124 | D85: 18 | E85: 0.108
B86: 18.5 | C86: 6959 | D86: 18.5 | E86: 0.098
B87: 19 | C87: 6789 | D87: 19 | E87: 0.088
B88: 19.5 | C88: 6630 | D88: 19.5 | E88: 0.08
B89: 20 | C89: 6472 | D89: 20 | E89: 0.073
B90: 20.5 | C90: 6262 | D90: 20.5 | E90: 0.066
B91: 21 | C91: 5946 | D91: 21 | E91: 0.058
B92: 21.5 | C92: 5538 | D92: 21.5 | E92: 0.052
B93: 22 | C93: 5069 | D93: 22 | E93: 0.045
B94: 22.5 | C94: 4597 | D94: 22.5 | E94: 0.039
B95: 23 | C95: 4121 | D95: 23 | E95: 0.033
B96: 23.5 | C96: 3636 | D96: 23.5 | E96: 0.028
B97: 24 | C97: 3169 | D97: 24 | E97: 0.024
B98: 24.5 | C98: 2718 | D98: 24.5 | E98: 0.02
B99: 25 | C99: 2328 | D99: 25 | E99: 0.017

Sheet Vestas 5.2 SO2
B3: Wind Speed v (m/s) | C3: Power P (kW) | D3: Wind Speed v (m/s) | E3: Thrust Coefficient Ct
B4: 3 | C4: 32 | D4: 3 | E4: 0.969
B5: 3.5 | C5: 129 | D5: 3.5 | E5: 0.885
B6: 4 | C6: 288 | D6: 4 | E6: 0.832
B7: 4.5 | C7: 471 | D7: 4.5 | E7: 0.816
B8: 5 | C8: 697 | D8: 5 | E8: 0.812
B9: 5.5 | C9: 974 | D9: 5.5 | E9: 0.814
B10: 6 | C10: 1307 | D10: 6 | E10: 0.814
B11: 6.5 | C11: 1697 | D11: 6.5 | E11: 0.811
B12: 7 | C12: 2151 | D12: 7 | E12: 0.806
B13: 7.5 | C13: 2668 | D13: 7.5 | E13: 0.799
B14: 8 | C14: 3227 | D14: 8 | E14: 0.787
B15: 8.5 | C15: 3780 | D15: 8.5 | E15: 0.747
B16: 9 | C16: 4301 | D16: 9 | E16: 0.691
B17: 9.5 | C17: 4787 | D17: 9.5 | E17: 0.632
B18: 10 | C18: 5200 | D18: 10 | E18: 0.575
B19: 10.5 | C19: 5200 | D19: 10.5 | E19: 0.514
B20: 11 | C20: 5200 | D20: 11 | E20: 0.451
B21: 11.5 | C21: 5200 | D21: 11.5 | E21: 0.392
B22: 12 | C22: 5200 | D22: 12 | E22: 0.342
B23: 12.5 | C23: 5200 | D23: 12.5 | E23: 0.3
B24: 13 | C24: 5200 | D24: 13 | E24: 0.264
B25: 13.5 | C25: 5200 | D25: 13.5 | E25: 0.234
B26: 14 | C26: 5200 | D26: 14 | E26: 0.208
B27: 14.5 | C27: 5200 | D27: 14.5 | E27: 0.186
B28: 15 | C28: 5200 | D28: 15 | E28: 0.167
B29: 15.5 | C29: 5200 | D29: 15.5 | E29: 0.15
B30: 16 | C30: 5200 | D30: 16 | E30: 0.137
B31: 16.5 | C31: 5020 | D31: 16.5 | E31: 0.124
B32: 17 | C32: 4839 | D32: 17 | E32: 0.113
B33: 17.5 | C33: 4659 | D33: 17.5 | E33: 0.104
B34: 18 | C34: 4479 | D34: 18 | E34: 0.096
B35: 18.5 | C35: 4298 | D35: 18.5 | E35: 0.088
B36: 19 | C36: 4118 | D36: 19 | E36: 0.081
B37: 19.5 | C37: 3938 | D37: 19.5 | E37: 0.075
B38: 20 | C38: 3757 | D38: 20 | E38: 0.07
B39: 20.5 | C39: 3577 | D39: 20.5 | E39: 0.064
B40: 21 | C40: 3397 | D40: 21 | E40: 0.058
B41: 21.5 | C41: 3216 | D41: 21.5 | E41: 0.051
B42: 22 | C42: 3036 | D42: 22 | E42: 0.044
B43: 22.5 | C43: 2856 | D43: 22.5 | E43: 0.038
B44: 23 | C44: 2675 | D44: 23 | E44: 0.033
B45: 23.5 | C45: 2495 | D45: 23.5 | E45: 0.028
B46: 24 | C46: 2315 | D46: 24 | E46: 0.024
B47: 24.5 | C47: 2134 | D47: 24.5 | E47: 0.02
B48: 25 | C48: 1954 | D48: 25 | E48: 0.017

Sheet Vestas 4.8 SO4
B4: v (m/s) | C4: P (kW) | D4: v (m/s) | E4: ct
B5: 3 | C5: 32 | D5: 3 | E5: 0.969
B6: 3.5 | C6: 129 | D6: 3.5 | E6: 0.885
B7: 4 | C7: 288 | D7: 4 | E7: 0.831
B8: 4.5 | C8: 471 | D8: 4.5 | E8: 0.816
B9: 5 | C9: 697 | D9: 5 | E9: 0.812
B10: 5.5 | C10: 974 | D10: 5.5 | E10: 0.814
B11: 6 | C11: 1307 | D11: 6 | E11: 0.814
B12: 6.5 | C12: 1697 | D12: 6.5 | E12: 0.811
B13: 7 | C13: 2151 | D13: 7 | E13: 0.804
B14: 7.5 | C14: 2650 | D14: 7.5 | E14: 0.779
B15: 8 | C15: 3149 | D15: 8 | E15: 0.72
B16: 8.5 | C16: 3619 | D16: 8.5 | E16: 0.653
B17: 9 | C17: 4065 | D17: 9 | E17: 0.593
B18: 9.5 | C18: 4470 | D18: 9.5 | E18: 0.539
B19: 10 | C19: 4800 | D19: 10 | E19: 0.489
B20: 10.5 | C20: 4800 | D20: 10.5 | E20: 0.439
B21: 11 | C21: 4800 | D21: 11 | E21: 0.391
B22: 11.5 | C22: 4800 | D22: 11.5 | E22: 0.344
B23: 12 | C23: 4800 | D23: 12 | E23: 0.303
B24: 12.5 | C24: 4800 | D24: 12.5 | E24: 0.268
B25: 13 | C25: 4800 | D25: 13 | E25: 0.237
B26: 13.5 | C26: 4800 | D26: 13.5 | E26: 0.21
B27: 14 | C27: 4800 | D27: 14 | E27: 0.187
B28: 14.5 | C28: 4800 | D28: 14.5 | E28: 0.168
B29: 15 | C29: 4800 | D29: 15 | E29: 0.151
B30: 15.5 | C30: 4800 | D30: 15.5 | E30: 0.136
B31: 16 | C31: 4800 | D31: 16 | E31: 0.123
B32: 16.5 | C32: 4637 | D32: 16.5 | E32: 0.112
B33: 17 | C33: 4474 | D33: 17 | E33: 0.102
B34: 17.5 | C34: 4311 | D34: 17.5 | E34: 0.095
B35: 18 | C35: 4147 | D35: 18 | E35: 0.087
B36: 18.5 | C36: 3984 | D36: 18.5 | E36: 0.08
B37: 19 | C37: 3821 | D37: 19 | E37: 0.074
B38: 19.5 | C38: 3658 | D38: 19.5 | E38: 0.068
B39: 20 | C39: 3495 | D39: 20 | E39: 0.063
B40: 20.5 | C40: 3332 | D40: 20.5 | E40: 0.059
B41: 21 | C41: 3168 | D41: 21 | E41: 0.055
B42: 21.5 | C42: 3005 | D42: 21.5 | E42: 0.05
B43: 22 | C43: 2842 | D43: 22 | E43: 0.044
B44: 22.5 | C44: 2679 | D44: 22.5 | E44: 0.038
B45: 23 | C45: 2516 | D45: 23 | E45: 0.033
B46: 23.5 | C46: 2353 | D46: 23.5 | E46: 0.028
B47: 24 | C47: 2189 | D47: 24 | E47: 0.024
B48: 24.5 | C48: 2026 | D48: 24.5 | E48: 0.02
B49: 25 | C49: 1863 | D49: 25 | E49: 0.017

Sheet Enercon Mode 0
B5: Wind Speed v (m/s) for Power | C5: Power P (kW) | D5: Wind Speed v (m/s) for Ct | E5: Thrust Coefficient Ct
B6: 1 | C6: 1 | D6: 1 | E6: 0
B7: 2 | C7: 3 | D7: 2 | E7: 0.781
B8: 3 | C8: 25 | D8: 3 | E8: 0.785
B9: 4 | C9: 82 | D9: 4 | E9: 0.774
B10: 5 | C10: 174 | D10: 5 | E10: 0.781
B11: 6 | C11: 321 | D11: 6 | E11: 0.777
B12: 7 | C12: 532 | D12: 7 | E12: 0.778
B13: 8 | C13: 815 | D13: 8 | E13: 0.775
B14: 9 | C14: 1180 | D14: 9 | E14: 0.769
B15: 10 | C15: 1580 | D15: 10 | E15: 0.77
B16: 11 | C16: 1810 | D16: 11 | E16: 0.773
B17: 12 | C17: 1980 | D17: 12 | E17: 0.495
B18: 13 | C18: 2050 | D18: 13 | E18: 0.367
B19: 14 | C19: 2050 | D19: 14 | E19: 0.286
B20: 15 | C20: 2050 | D20: 15 | E20: 0.23
B21: 16 | C21: 2050 | D21: 16 | E21: 0.188
B22: 17 | C22: 2050 | D22: 17 | E22: 0.156
B23: 18 | C23: 2050 | D23: 18 | E23: 0.131
B24: 19 | C24: 2050 | D24: 19 | E24: 0.111
B25: 20 | C25: 2050 | D25: 20 | E25: 0.096
B26: 21 | C26: 2050 | D26: 21 | E26: 0.084
B27: 22 | C27: 2050 | D27: 22 | E27: 0.074
B28: 23 | C28: 2050 | D28: 23 | E28: 0.066
B29: 24 | C29: 2050 | D29: 24 | E29: 0.059
B30: 25 | C30: 2050 | D30: 25 | E30: 0.053

Sheet Enercon 2
B4: v (m/s) | C4: P_v (kW) | D4: P_v (kW) | E4: C_t
B5: 0 | C5: 0 | D5: 0 | E5: 0
B6: 0.5 | C6: 0 | D6: 0 | E6: 0
B7: 1 | C7: 0 | D7: 0 | E7: 0
B8: 1.5 | C8: 0 | D8: 0 | E8: 0.77
B9: 2 | C9: 0 | D9: 0 | E9: 0.78
B10: 2.5 | C10: 10 | D10: 10 | E10: 0.78
B11: 3 | C11: 25 | D11: 25 | E11: 0.77
B12: 3.5 | C12: 49 | D12: 49 | E12: 0.77
B13: 4 | C13: 82 | D13: 82 | E13: 0.78
B14: 4.5 | C14: 123 | D14: 123 | E14: 0.78
B15: 5 | C15: 174 | D15: 174 | E15: 0.78
B16: 5.5 | C16: 240 | D16: 240 | E16: 0.78
B17: 6 | C17: 321 | D17: 321 | E17: 0.78
B18: 6.5 | C18: 418 | D18: 418 | E18: 0.78
B19: 7 | C19: 532 | D19: 532 | E19: 0.77
B20: 7.5 | C20: 664 | D20: 664 | E20: 0.77
B21: 8 | C21: 815 | D21: 815 | E21: 0.77
B22: 8.5 | C22: 988 | D22: 988 | E22: 0.77
B23: 9 | C23: 1180 | D23: 1180 | E23: 0.77
B24: 9.5 | C24: 1384 | D24: 1384 | E24: 0.77
B25: 10 | C25: 1580 | D25: 1580 | E25: 0.77
B26: 10.5 | C26: 1749 | D26: 1749 | E26: 0.77
B27: 11 | C27: 1890 | D27: 1890 | E27: 0.61
B28: 11.5 | C28: 2005 | D28: 2005 | E28: 0.51
B29: 12 | C29: 2100 | D29: 2100 | E29: 0.43
B30: 12.5 | C30: 2180 | D30: 2180 | E30: 0.38
B31: 13 | C31: 2250 | D31: 2250 | E31: 0.33
B32: 13.5 | C32: 2311 | D32: 2311 | E32: 0.3
B33: 14 | C33: 2350 | D33: 2350 | E33: 0.27
B34: 14.5 | C34: 2350 | D34: 2350 | E34: 0.24
B35: 15 | C35: 2350 | D35: 2350 | E35: 0.22
B36: 15.5 | C36: 2350 | D36: 2350 | E36: 0.2
B37: 16 | C37: 2350 | D37: 2350 | E37: 0.18
B38: 16.5 | C38: 2350 | D38: 2350 | E38: 0.16
B39: 17 | C39: 2350 | D39: 2350 | E39: 0.15
B40: 17.5 | C40: 2350 | D40: 2350 | E40: 0.14
B41: 18 | C41: 2350 | D41: 2350 | E41: 0.13
B42: 18.5 | C42: 2350 | D42: 2350 | E42: 0.12
B43: 19 | C43: 2350 | D43: 2350 | E43: 0.11
B44: 19.5 | C44: 2350 | D44: 2350 | E44: 0.1
B45: 20 | C45: 2350 | D45: 2350 | E45: 0.1
B46: 20.5 | C46: 2350 | D46: 2350 | E46: 0.09
B47: 21 | C47: 2350 | D47: 2350 | E47: 0.08
B48: 21.5 | C48: 2350 | D48: 2350 | E48: 0.08
B49: 22 | C49: 2350 | D49: 2350 | E49: 0.07
B50: 22.5 | C50: 2350 | D50: 2350 | E50: 0.07
B51: 23 | C51: 2350 | D51: 2350 | E51: 0.06
B52: 23.5 | C52: 2346 | D52: 2346 | E52: 0.06
B53: 24 | C53: 2339 | D53: 2339 | E53: 0.06
B54: 24.5 | C54: 2350 | D54: 2350 | E54: 0.05
